Workbook

Sheet INGRESO DE DATOS
A20: 1. LLENE LA INFORMACIÓN DEL ASEGURADO PROPUESTO:
B22: Nombre del Asegurado Titular | D22: JOHN DOE
B24: Número de adultos en la póliza | D24: 2 | F24: Número de niños en la póliza | H24: 2
B26: Edad del Asegurado Titular | D26: 32 | F26: Edad del/la cónyuge | H26: 46
C28: Cotizador por | D28: NOMBRE DEL AGENTE
A32: 2. SELECCIONE EL PRODUCTO PARA VER LA COTIZACIÓN CORRESPONDIENTE:
B53: 1 | D53: 1

Sheet Global Ultimate Health Plan
A20: Global Ultimate Health Plan | D20: Nombre del Asegurado Titular | F20: =+'INGRESO DE DATOS'!$D$22 -> JOHN DOE
D21: Cotizado por | F21: =+'INGRESO DE DATOS'!$D$28 -> NOMBRE DEL AGENTE
D23: Número de adultos en la póliza | F23: =+'INGRESO DE DATOS'!$D$24 -> 2 | H23: Edad del Asegurado Titular | I23: =+'INGRESO DE DATOS'!$D$26 -> 32
D25: Número de niños en la póliza | F25: =+'INGRESO DE DATOS'!$H$24 -> 2 | H25: Edad del/la conyuge | I25: =+'INGRESO DE DATOS'!$H$26 -> 46
D27: Número de niños menores de 16 años | F27: =+'INGRESO DE DATOS'!$B$53 -> 1 | G27: Fecha de la cotización : | H27: =NOW() -> 2021-11-18T04:56:41.600
H28: FALSE
E29: Deducibles | G29: PLAN 1 | H29: PLAN 2
E30: En el país de residencia | G30: 0 | H30: 1000
E31: Fuera del país de residencia | G31: 0 | H31: 1000
E33: Tarifas Anuales
E34: Prima para Asegurado Titular | G34: =(VLOOKUP($I$23,Tablas!$A$905:$G$971,3,TRUE))*1.1494*0.9 -> 20879.54064 | H34: =(VLOOKUP($I$23,Tablas!$A$905:$G$971,4,TRUE))*1.1494*0.9 -> 13472.80704
E35: Prima para conyuge | G35: =(IF($F$23=1,0,(VLOOKUP($I$25,Tablas!$A$905:$G$971,3,TRUE))))*1.1494*0.9 -> 29297.97612 | H35: =(IF($F$23=1,0,(VLOOKUP($I$25,Tablas!$A$905:$G$971,4,TRUE))))*1.1494*0.9 -> 18903.72204
E36: Prima para hijo (s) | G36: =((IF(('INGRESO DE DATOS'!H24-'INGRESO DE DATOS'!B53)<=0,0,IF(('INGRESO DE DATOS'!H24-'INGRESO DE DATOS'!B53)=Tablas!A972,Tablas!C972,IF(('INGRESO DE DATOS'!H24-'INGRESO DE DATOS'!B53)=Tablas!A973,Tablas!C973,Tablas!C974))))*1.1494)*0.9 -> 7340.52816 | H36: =((IF(('INGRESO DE DATOS'!H24 - 'INGRESO DE DATOS'!B53)<=0,0,IF(('INGRESO DE DATOS'!H24 - 'INGRESO DE DATOS'!B53)=Tablas!A972,Tablas!D972,IF(('INGRESO DE DATOS'!H24 - 'INGRESO DE DATOS'!B53)=Tablas!A973,Tablas!D973,Tablas!D974))))*1.1494)*0.9 -> 4736.79234
E37: Total de Prima neta | G37: =(SUM(G34:G36)) -> 57518.04492 | H37: =(SUM(H34:H36)) -> 37113.32142
E38: Costo administrativo anual | G38: 86 | H38: 86
E39: Impuesto (14.49%) | G39: =(G38)*0% -> 0 | H39: =(H38)*0% -> 0
E41: TOTAL ANUAL | G41: =SUM(G37:G39) -> 57604.04492 | H41: =SUM(H37:H39) -> 37199.32142
E42: Ahorros en tarifas de prima para niños | G42: =(IF(('INGRESO DE DATOS'!H24 - 'INGRESO DE DATOS'!B53) < 0, NA(), (IF('INGRESO DE DATOS'!H24<=0,0,IF('INGRESO DE DATOS'!H24=Tablas!A972,Tablas!C972,IF('INGRESO DE DATOS'!H24=Tablas!A973,Tablas!C973,Tablas!C974))) - IF(('INGRESO DE DATOS'!H24 - 'INGRESO DE DATOS'!B53)<=0,0,IF(('INGRESO DE DATOS'!H24 - 'INGRESO DE DATOS'!B53)=Tablas!A972,Tablas!C972,IF(('INGRESO DE DATOS'!H24 - 'INGRESO DE DATOS'!B53)=Tablas!A973,Tablas!C973,Tablas!C974))))))*1.1494 -> 5709.0698 | H42: =(IF(('INGRESO DE DATOS'!H24 - 'INGRESO DE DATOS'!B53) < 0, NA(), (IF('INGRESO DE DATOS'!H24<=0,0,IF('INGRESO DE DATOS'!H24=Tablas!A972,Tablas!D972,IF('INGRESO DE DATOS'!H24=Tablas!A973,Tablas!D973,Tablas!D974))) - IF(('INGRESO DE DATOS'!H24 - 'INGRESO DE DATOS'!B53)<=0,0,IF(('INGRESO DE DATOS'!H24 - 'INGRESO DE DATOS'!B53)=Tablas!A972,Tablas!D972,IF(('INGRESO DE DATOS'!H24 - 'INGRESO DE DATOS'!B53)=Tablas!A973,Tablas!D973,Tablas!D974))))))*1.1494 -> 3683.827
E44: Tarifas Semianuales
E45: Prima para Asegurado Titular | G45: =(VLOOKUP($I$23,Tablas!$A$1428:$G$1494,3,TRUE))*1.1494 -> 11599.7448 | H45: =(VLOOKUP($I$23,Tablas!$A$1428:$G$1494,4,TRUE))*1.1494 -> 7484.8928
E46: Prima para conyuge | G46: =(IF($F$23=1,0,(VLOOKUP($I$25,Tablas!$A$1428:$G$1494,3,TRUE))))*1.1494 -> 16276.6534 | H46: =(IF($F$23=1,0,(VLOOKUP($I$25,Tablas!$A$1428:$G$1494,4,TRUE))))*1.1494 -> 10502.0678
E47: Prima para hijo (s) | G47: =G36*Tablas!K4 -> 3670.26408 | H47: =H36*Tablas!K4 -> 2368.39617
E48: Total de Prima neta | G48: =(SUM(G45:G47)) -> 31546.66228 | H48: =(SUM(H45:H47)) -> 20355.35677
E49: Costo administrativo annual | G49: 86 | H49: 86
E50: Impuesto (14.49%) | G50: =(G49)*0% -> 0 | H50: =(H49)*0% -> 0
E51: TOTAL de primera cuota | G51: =SUM(G48:G50) -> 31632.66228 | H51: =SUM(H48:H50) -> 20441.35677
E52: Costo de segunda cuota | G52: =G48+G50 -> 31546.66228 | H52: =H48+H50 -> 20355.35677
E53: TOTAL ANUAL | G53: =G51+G52 -> 63179.32456 | H53: =H51+H52 -> 40796.71354
E54: Ahorros en tarifas de prima para niños | G54: =G42*Tablas!K4*2 -> 5709.0698 | H54: =H42*Tablas!K4*2 -> 3683.827
E56: Tarifas Trimestrales
E57: Prima para Asegurado Titular | G57: =(VLOOKUP($I$23,Tablas!$A$1054:$G$1120,3,TRUE))*1.1494 -> 5799.8724 | H57: =(VLOOKUP($I$23,Tablas!$A$1054:$G$1120,4,TRUE))*1.1494 -> 3742.4464
E58: Prima para conyuge | G58: =(IF($F$23=1,0,(VLOOKUP($I$25,Tablas!$A$1054:$G$1120,3,TRUE))))*1.1494 -> 8138.3267 | H58: =(IF($F$23=1,0,(VLOOKUP($I$25,Tablas!$A$1054:$G$1120,4,TRUE))))*1.1494 -> 5251.0339
E59: Prima para hijo (s) | G59: =G36*1.111*Tablas!K3 -> 2038.831696 | H59: =H36*1.111*Tablas!K3 -> 1315.644072
E60: Total de Prima neta | G60: =(SUM(G57:G59)) -> 15977.0308 | H60: =(SUM(H57:H59)) -> 10309.12437
E61: Costo administrativo annual | G61: 86 | H61: 86
E62: Impuesto (14.49%) | G62: =(G61)*0% -> 0 | H62: =(H61)*0% -> 0
E64: TOTAL de primera cuota | G64: =SUM(G60:G62) -> 16063.0308 | H64: =SUM(H60:H62) -> 10395.12437
E65: Tres (3) cuotas adicionales, cada una de: | G65: =G60+G62 -> 15977.0308 | H65: =H60+H62 -> 10309.12437
E66: TOTAL ANUAL | G66: =G64+(G65*3) -> 63994.12319 | H66: =H64+(H65*3) -> 41322.49749
E67: Ahorros en tarifas de prima para niños | G67: =G42*Tablas!K3*4 -> 5709.0698 | H67: =H42*Tablas!K3*4 -> 3683.827
E71: Tarifas Mensuales
E72: Prima para Asegurado Titular | G72: =(VLOOKUP($I$23,Tablas!$A$979:$G$1045,3,TRUE))*1.1494 -> 2165.285696 | H72: =(VLOOKUP($I$23,Tablas!$A$979:$G$1045,4,TRUE))*1.1494 -> 1397.179989
E73: Prima para conyuge | G73: =(IF($F$23=1,0,(VLOOKUP($I$25,Tablas!$A$979:$G$1045,3,TRUE))))*1.1494 -> 3038.308635 | H73: =(IF($F$23=1,0,(VLOOKUP($I$25,Tablas!$A$979:$G$1045,4,TRUE))))*1.1494 -> 1960.385989
E74: Prima para hijo (s) | G74: =G36*Tablas!K2 -> 685.1159616 | H74: =H36*Tablas!K2 -> 442.1006184
E75: Total de Prima neta | G75: =(SUM(G72:G74)) -> 5888.710292 | H75: =(SUM(H72:H74)) -> 3799.666597
E76: Costo administrativo anual | G76: 86 | H76: 86
E77: Impuesto (14.49%) | G77: =(G76)*0% -> 0 | H77: =(H76)*0% -> 0
E79: TOTAL de primera cuota | G79: =SUM(G75:G77) -> 5974.710292 | H79: =SUM(H75:H77) -> 3885.666597
E80: Once (11) cuotas mensuales cada una de: | G80: =G75+G77 -> 5888.710292 | H80: =H75+H77 -> 3799.666597
E81: TOTAL ANUAL | G81: =G79+(G80*11) -> 70750.52351 | H81: =H79+(H80*11) -> 45681.99916
E82: Ahorros en tarifas de prima para niños | G82: =(IF($F$23=1,IF($F$25=0,0,IF($F$27=0,0,IF($F$27=1,(VLOOKUP(1,Tablas!$A$1046:$G$1048,3,TRUE)),(VLOOKUP(2,Tablas!$A$1046:$G$1048,3,TRUE))))), IF($F$25=0,0,IF($F$27=0,0,IF($F$27=1,(VLOOKUP(1,Tablas!$A$1046:$G$1048,4,TRUE)),IF($F$27=2,(VLOOKUP(2,Tablas!$A$1046:$G$1048,4,TRUE)), (VLOOKUP(3,Tablas!$A$1046:$G$1048,4,TRUE))))))))*1.1494 -> 491.2229093 | H82: =(IF($F$23=1,IF($F$25=0,0,IF($F$27=0,0,IF($F$27=1,(VLOOKUP(1,Tablas!$A$1046:$G$1048,4,TRUE)),(VLOOKUP(2,Tablas!$A$1046:$G$1048,4,TRUE))))), IF($F$25=0,0,IF($F$27=0,0,IF($F$27=1,(VLOOKUP(1,Tablas!$A$1046:$G$1048,4,TRUE)),IF($F$27=2,(VLOOKUP(2,Tablas!$A$1046:$G$1048,4,TRUE)), (VLOOKUP(3,Tablas!$A$1046:$G$1048,4,TRUE))))))))*1.1494 -> 491.2229093
E83: Ahorros en tarifas de prima para niños | G83: =G42*Tablas!K2*12 -> 6394.158176 | H83: =H42*Tablas!K2*12 -> 4125.88624
E86: Tarifas en US$ - Efectivas a partir del 1ro. de Enero de 2020
E87: Este presupuesto solamente tiene carácter informativo y en ningún momento expresa compromiso legal para suministrarle cobertura de seguro. La emisión de una póliza de seguro Bupa está sujeta a todas las evaluaciones de riesgo por parte de Bupa y a la recepción de todos los pagos de prima requeridos.

Sheet Global Elite Health Plan
A19: Bupa Global Elite Health Plan | D19: Nombre del Asegurado Titular | F19: =+'INGRESO DE DATOS'!$D$22 -> JOHN DOE
E20: Cotizado por | F20: =+'INGRESO DE DATOS'!$D$28 -> NOMBRE DEL AGENTE
D22: Número de adultos en la póliza | F22: =+'INGRESO DE DATOS'!$D$24 -> 2 | H22: Edad del Asegurado Titular | I22: =+'INGRESO DE DATOS'!$D$26 -> 32
D24: Número de niños en la póliza | F24: =+'INGRESO DE DATOS'!$H$24 -> 2 | H24: Edad del/la conyuge | I24: =+'INGRESO DE DATOS'!$H$26 -> 46
D26: Número de niños menores de 10 años | F26: =+'INGRESO DE DATOS'!$D$53 -> 1 | G26: Fecha de la cotización : | H26: =NOW() -> 2021-11-18T04:56:41.600
H27: FALSE
E28: Deducibles | G28: PLAN 1 | H28: PLAN 2 | I28: PLAN 3 | J28: PLAN 4 | K28: PLAN 5
E29: En el país de residencia | G29: 250 | H29: 2000 | I29: 3500 | J29: 5000 | K29: 10000
E30: Fuera del país de residencia | G30: 5000 | H30: 2000 | I30: 3500 | J30: 5000 | K30: 10000
E32: Tarifas Anuales
E33: Prima para Asegurado Titular | G33: =(VLOOKUP($I$22,Tablas!$A$6:$G$72,3,TRUE))*1.1494*0.9 -> 7599.712113 | H33: =(VLOOKUP($I$22,Tablas!$A$6:$G$72,4,TRUE))*1.1494*0.9 -> 6661.508616 | I33: =(VLOOKUP($I$22,Tablas!$A$6:$G$72,5,TRUE))*1.1494*0.9 -> 5556.239829 | J33: =(VLOOKUP($I$22,Tablas!$A$6:$G$72,6,TRUE))*1.1494*0.9 -> 4816.756098 | K33: =(VLOOKUP($I$22,Tablas!$A$6:$G$72,7,TRUE))*1.1494*0.9 -> 3736.107459
E34: Prima para conyuge | G34: =(IF($F$22=1,0,(VLOOKUP($I$24,Tablas!$A$6:$G$72,3,TRUE))))*1.1494*0.9 -> 10634.14535 | H34: =(IF($F$22=1,0,(VLOOKUP($I$24,Tablas!$A$6:$G$72,4,TRUE))))*1.1494*0.9 -> 9320.4846 | I34: =(IF($F$22=1,0,(VLOOKUP($I$24,Tablas!$A$6:$G$72,5,TRUE))))*1.1494*0.9 -> 7670.934684 | J34: =(IF($F$22=1,0,(VLOOKUP($I$24,Tablas!$A$6:$G$72,6,TRUE))))*1.1494*0.9 -> 6650.957124 | K34: =(IF($F$22=1,0,(VLOOKUP($I$24,Tablas!$A$6:$G$72,7,TRUE))))*1.1494*0.9 -> 5157.921006
E35: Prima para hijo (s) | G35: =((IF(('INGRESO DE DATOS'!$H$24 - 'INGRESO DE DATOS'!$D$53)<=0,0,IF(('INGRESO DE DATOS'!$H$24 - 'INGRESO DE DATOS'!$D$53)=Tablas!$A$73,Tablas!C73,IF(('INGRESO DE DATOS'!$H$24 - 'INGRESO DE DATOS'!$D$53)=Tablas!$A$74,Tablas!C74,Tablas!C75))))*1.1494)*0.9 -> 2703.819825 | H35: =((IF(('INGRESO DE DATOS'!$H$24 - 'INGRESO DE DATOS'!$D$53)<=0,0,IF(('INGRESO DE DATOS'!$H$24 - 'INGRESO DE DATOS'!$D$53)=Tablas!$A$73,Tablas!D73,IF(('INGRESO DE DATOS'!$H$24 - 'INGRESO DE DATOS'!$D$53)=Tablas!$A$74,Tablas!D74,Tablas!D75))))*1.1494)*0.9 -> 2369.689245 | I35: =((IF(('INGRESO DE DATOS'!$H$24 - 'INGRESO DE DATOS'!$D$53)<=0,0,IF(('INGRESO DE DATOS'!$H$24 - 'INGRESO DE DATOS'!$D$53)=Tablas!$A$73,Tablas!E73,IF(('INGRESO DE DATOS'!$H$24 - 'INGRESO DE DATOS'!$D$53)=Tablas!$A$74,Tablas!E74,Tablas!E75))))*1.1494)*0.9 -> 2017.093554 | J35: =((IF(('INGRESO DE DATOS'!$H$24 - 'INGRESO DE DATOS'!$D$53)<=0,0,IF(('INGRESO DE DATOS'!$H$24 - 'INGRESO DE DATOS'!$D$53)=Tablas!$A$73,Tablas!F73,IF(('INGRESO DE DATOS'!$H$24 - 'INGRESO DE DATOS'!$D$53)=Tablas!$A$74,Tablas!F74,Tablas!F75))))*1.1494)*0.9 -> 1749.78909 | K35: =((IF(('INGRESO DE DATOS'!$H$24 - 'INGRESO DE DATOS'!$D$53)<=0,0,IF(('INGRESO DE DATOS'!$H$24 - 'INGRESO DE DATOS'!$D$53)=Tablas!$A$73,Tablas!G73,IF(('INGRESO DE DATOS'!$H$24 - 'INGRESO DE DATOS'!$D$53)=Tablas!$A$74,Tablas!G74,Tablas!G75))))*1.1494)*0.9 -> 1356.746013
E36: Total de Prima neta | G36: =(SUM(G33:G35)) -> 20937.67729 | H36: =(SUM(H33:H35)) -> 18351.68246 | I36: =(SUM(I33:I35)) -> 15244.26807 | J36: =(SUM(J33:J35)) -> 13217.50231 | K36: =(SUM(K33:K35)) -> 10250.77448
E37: Costo Administrativo Anual | G37: 86 | H37: 86 | I37: 86 | J37: 86 | K37: 86
E38: IVA (14.49%) | G38: =(G37)*0% -> 0 | H38: =(H37)*0% -> 0 | I38: =(I37)*0% -> 0 | J38: =(J37)*0% -> 0 | K38: =(K37)*0% -> 0
E40: TOTAL ANUAL | G40: =SUM(G36:G38) -> 21023.67729 | H40: =SUM(H36:H38) -> 18437.68246 | I40: =SUM(I36:I38) -> 15330.26807 | J40: =SUM(J36:J38) -> 13303.50231 | K40: =SUM(K36:K38) -> 10336.77448
E41: Ahorros en tarifas de prima para niños | G41: =(IF(('INGRESO DE DATOS'!$H$24 - 'INGRESO DE DATOS'!$D$53) < 0, NA(), (IF('INGRESO DE DATOS'!$H$24<=0,0,IF('INGRESO DE DATOS'!$H$24=Tablas!$A$73,Tablas!C73,IF('INGRESO DE DATOS'!$H$24=Tablas!$A$74,Tablas!C74,Tablas!C75))) - IF(('INGRESO DE DATOS'!$H$24 - 'INGRESO DE DATOS'!$D$53)<=0,0,IF(('INGRESO DE DATOS'!$H$24 - 'INGRESO DE DATOS'!$D$53)=Tablas!$A$73,Tablas!C73,IF(('INGRESO DE DATOS'!$H$24 - 'INGRESO DE DATOS'!$D$53)=Tablas!$A$74,Tablas!C74,Tablas!C75))))))*1.1494 -> 2100.5285 | H41: =(IF(('INGRESO DE DATOS'!$H$24 - 'INGRESO DE DATOS'!$D$53) < 0, NA(), (IF('INGRESO DE DATOS'!$H$24<=0,0,IF('INGRESO DE DATOS'!$H$24=Tablas!$A$73,Tablas!D73,IF('INGRESO DE DATOS'!$H$24=Tablas!$A$74,Tablas!D74,Tablas!D75))) - IF(('INGRESO DE DATOS'!$H$24 - 'INGRESO DE DATOS'!$D$53)<=0,0,IF(('INGRESO DE DATOS'!$H$24 - 'INGRESO DE DATOS'!$D$53)=Tablas!$A$73,Tablas!D73,IF(('INGRESO DE DATOS'!$H$24 - 'INGRESO DE DATOS'!$D$53)=Tablas!$A$74,Tablas!D74,Tablas!D75))))))*1.1494 -> 1842.60314 | I41: =(IF(('INGRESO DE DATOS'!$H$24 - 'INGRESO DE DATOS'!$D$53) < 0, NA(), (IF('INGRESO DE DATOS'!$H$24<=0,0,IF('INGRESO DE DATOS'!$H$24=Tablas!$A$73,Tablas!E73,IF('INGRESO DE DATOS'!$H$24=Tablas!$A$74,Tablas!E74,Tablas!E75))) - IF(('INGRESO DE DATOS'!$H$24 - 'INGRESO DE DATOS'!$D$53)<=0,0,IF(('INGRESO DE DATOS'!$H$24 - 'INGRESO DE DATOS'!$D$53)=Tablas!$A$73,Tablas!E73,IF(('INGRESO DE DATOS'!$H$24 - 'INGRESO DE DATOS'!$D$53)=Tablas!$A$74,Tablas!E74,Tablas!E75))))))*1.1494 -> 1569.04594 | J41: =(IF(('INGRESO DE DATOS'!$H$24 - 'INGRESO DE DATOS'!$D$53) < 0, NA(), (IF('INGRESO DE DATOS'!$H$24<=0,0,IF('INGRESO DE DATOS'!$H$24=Tablas!$A$73,Tablas!F73,IF('INGRESO DE DATOS'!$H$24=Tablas!$A$74,Tablas!F74,Tablas!F75))) - IF(('INGRESO DE DATOS'!$H$24 - 'INGRESO DE DATOS'!$D$53)<=0,0,IF(('INGRESO DE DATOS'!$H$24 - 'INGRESO DE DATOS'!$D$53)=Tablas!$A$73,Tablas!F73,IF(('INGRESO DE DATOS'!$H$24 - 'INGRESO DE DATOS'!$D$53)=Tablas!$A$74,Tablas!F74,Tablas!F75))))))*1.1494 -> 1360.94707 | K41: =(IF(('INGRESO DE DATOS'!$H$24 - 'INGRESO DE DATOS'!$D$53) < 0, NA(), (IF('INGRESO DE DATOS'!$H$24<=0,0,IF('INGRESO DE DATOS'!$H$24=Tablas!$A$73,Tablas!G73,IF('INGRESO DE DATOS'!$H$24=Tablas!$A$74,Tablas!G74,Tablas!G75))) - IF(('INGRESO DE DATOS'!$H$24 - 'INGRESO DE DATOS'!$D$53)<=0,0,IF(('INGRESO DE DATOS'!$H$24 - 'INGRESO DE DATOS'!$D$53)=Tablas!$A$73,Tablas!G73,IF(('INGRESO DE DATOS'!$H$24 - 'INGRESO DE DATOS'!$D$53)=Tablas!$A$74,Tablas!G74,Tablas!G75))))))*1.1494 -> 1055.1492
E43: Tarifas Semianuales
E44: Prima para Asegurado Titular | G44: =(VLOOKUP($I$22,Tablas!$A$455:$G$521,3,TRUE))*1.1494 -> 4222.062285 | H44: =(VLOOKUP($I$22,Tablas!$A$455:$G$521,4,TRUE))*1.1494 -> 3700.83812 | I44: =(VLOOKUP($I$22,Tablas!$A$455:$G$521,5,TRUE))*1.1494 -> 3086.799905 | J44: =(VLOOKUP($I$22,Tablas!$A$455:$G$521,6,TRUE))*1.1494 -> 2675.97561 | K44: =(VLOOKUP($I$22,Tablas!$A$455:$G$521,7,TRUE))*1.1494 -> 2075.615255
E45: Prima para conyuge | G45: =(IF($F$22=1,0,(VLOOKUP($I$24,Tablas!$A$455:$G$521,3,TRUE))))*1.1494 -> 5907.85853 | H45: =(IF($F$22=1,0,(VLOOKUP($I$24,Tablas!$A$455:$G$521,4,TRUE))))*1.1494 -> 5178.047 | I45: =(IF($F$22=1,0,(VLOOKUP($I$24,Tablas!$A$455:$G$521,5,TRUE))))*1.1494 -> 4261.63038 | J45: =(IF($F$22=1,0,(VLOOKUP($I$24,Tablas!$A$455:$G$521,6,TRUE))))*1.1494 -> 3694.97618 | K45: =(IF($F$22=1,0,(VLOOKUP($I$24,Tablas!$A$455:$G$521,7,TRUE))))*1.1494 -> 2865.51167
E46: Prima para hijo (s) | G46: =(G35*1.111)*Tablas!$K$4 -> 1501.971913 | H46: =H35*1.111*Tablas!$K$4 -> 1316.362376 | I46: =I35*Tablas!$K$4 -> 1008.546777 | J46: =J35*Tablas!$K$4 -> 874.894545 | K46: =K35*Tablas!$K$4 -> 678.3730065
E47: Total de Prima neta | G47: =(SUM(G44:G46)) -> 11631.89273 | H47: =(SUM(H44:H46)) -> 10195.2475 | I47: =(SUM(I44:I46)) -> 8356.977062 | J47: =(SUM(J44:J46)) -> 7245.846335 | K47: =(SUM(K44:K46)) -> 5619.499931
E48: Costo Administrativo Anual | G48: 86 | H48: 86 | I48: 86 | J48: 86 | K48: 86
E49: IVA (14.49%) | G49: =(G48)*0% -> 0 | H49: =(H48)*0% -> 0 | I49: =(I48)*0% -> 0 | J49: =(J48)*0% -> 0 | K49: =(K48)*0% -> 0
E50: TOTAL de primera cuota | G50: =SUM(G47:G49) -> 11717.89273 | H50: =SUM(H47:H49) -> 10281.2475 | I50: =SUM(I47:I49) -> 8442.977062 | J50: =SUM(J47:J49) -> 7331.846335 | K50: =SUM(K47:K49) -> 5705.499931
E51: Costo de segunda cuota | G51: =G47+G49 -> 11631.89273 | H51: =H47+H49 -> 10195.2475 | I51: =I47+I49 -> 8356.977062 | J51: =J47+J49 -> 7245.846335 | K51: =K47+K49 -> 5619.499931
E52: TOTAL ANUAL | G52: =G50+G51 -> 23349.78546 | H52: =H50+H51 -> 20476.49499 | I52: 16799.95412 | J52: =J50+J51 -> 14577.69267 | K52: 11324.99986
E53: Ahorros en tarifas de prima para niños | G53: =G41*Tablas!$K$4*2 -> 2100.5285 | H53: =H41*Tablas!$K$4*2 -> 1842.60314 | I53: =I41*Tablas!$K$4*2 -> 1569.04594 | J53: =J41*Tablas!$K$4*2 -> 1360.94707 | K53: =K41*Tablas!$K$4*2 -> 1055.1492
E55: Tarifas Trimestrales
E56: Prima para Asegurado Titular | G56: =(VLOOKUP($I$22,Tablas!$A$680:$G$746,3,TRUE))*1.1494 -> 2111.031142 | H56: =(VLOOKUP($I$22,Tablas!$A$680:$G$746,4,TRUE))*1.1494 -> 1850.41906 | I56: =(VLOOKUP($I$22,Tablas!$A$680:$G$746,5,TRUE))*1.1494 -> 1543.399952 | J56: =(VLOOKUP($I$22,Tablas!$A$680:$G$746,6,TRUE))*1.1494 -> 1337.987805 | K56: =(VLOOKUP($I$22,Tablas!$A$680:$G$746,7,TRUE))*1.1494 -> 1037.807628
E57: Prima para conyuge | G57: =(IF($F$22=1,0,(VLOOKUP($I$24,Tablas!$A$680:$G$746,3,TRUE))))*1.1494 -> 2953.929265 | H57: =(IF($F$22=1,0,(VLOOKUP($I$24,Tablas!$A$680:$G$746,4,TRUE))))*1.1494 -> 2589.0235 | I57: =(IF($F$22=1,0,(VLOOKUP($I$24,Tablas!$A$680:$G$746,5,TRUE))))*1.1494 -> 2130.81519 | J57: =(IF($F$22=1,0,(VLOOKUP($I$24,Tablas!$A$680:$G$746,6,TRUE))))*1.1494 -> 1847.48809 | K57: =(IF($F$22=1,0,(VLOOKUP($I$24,Tablas!$A$680:$G$746,7,TRUE))))*1.1494 -> 1432.755835
E58: Prima para hijo (s) | G58: =G35*Tablas!$K$3 -> 675.9549563 | H58: =H35*Tablas!$K$3 -> 592.4223113 | I58: =I35*Tablas!$K$3 -> 504.2733885 | J58: =J35*Tablas!$K$3 -> 437.4472725 | K58: =K35*Tablas!$K$3 -> 339.1865032
E59: Total de Prima neta | G59: =(SUM(G56:G58)) -> 5740.915364 | H59: =(SUM(H56:H58)) -> 5031.864871 | I59: =(SUM(I56:I58)) -> 4178.488531 | J59: =(SUM(J56:J58)) -> 3622.923167 | K59: =(SUM(K56:K58)) -> 2809.749966
E60: Costo Administrativo Anual | G60: 86 | H60: 86 | I60: 86 | J60: 86 | K60: 86
E61: IVA (14.49%) | G61: =(G60)*0% -> 0 | H61: =(H60)*0% -> 0 | I61: =(I60)*0% -> 0 | J61: =(J60)*0% -> 0 | K61: =(K60)*0% -> 0
E63: TOTAL de primera cuota | G63: =SUM(G59:G61) -> 5826.915364 | H63: =SUM(H59:H61) -> 5117.864871 | I63: =SUM(I59:I61) -> 4264.488531 | J63: =SUM(J59:J61) -> 3708.923167 | K63: =SUM(K59:K61) -> 2895.749966
E64: Tres (3) cuotas adicionales, cada una de: | G64: =G59+G61 -> 5740.915364 | H64: =H59+H61 -> 5031.864871 | I64: =I59+I61 -> 4178.488531 | J64: =J59+J61 -> 3622.923167 | K64: =K59+K61 -> 2809.749966
E65: TOTAL ANUAL | G65: =G63+(G64*3) -> 23049.66145 | H65: =H63+(H64*3) -> 20213.45948 | I65: 16799.95412 | J65: =J63+(J64*3) -> 14577.69267 | K65: 11324.99986
E66: Ahorros en tarifas de prima para niños | G66: =G41*Tablas!$K$3*4 -> 2100.5285 | H66: =H41*Tablas!$K$3*4 -> 1842.60314 | I66: =I41*Tablas!$K$3*4 -> 1569.04594 | J66: =J41*Tablas!$K$3*4 -> 1360.94707 | K66: =K41*Tablas!$K$3*4 -> 1055.1492
E69: Tarifas Mensuales
E70: Prima para Asegurado Titular | G70: =(VLOOKUP($I$22,Tablas!$A$80:$G$146,3,TRUE))*1.1494 -> 788.1182932 | H70: =(VLOOKUP($I$22,Tablas!$A$80:$G$146,4,TRUE))*1.1494 -> 690.8231157 | I70: =(VLOOKUP($I$22,Tablas!$A$80:$G$146,5,TRUE))*1.1494 -> 576.2026489 | J70: =(VLOOKUP($I$22,Tablas!$A$80:$G$146,6,TRUE))*1.1494 -> 499.5154472 | K70: =(VLOOKUP($I$22,Tablas!$A$80:$G$146,7,TRUE))*1.1494 -> 387.4481809
E71: Prima para conyuge | G71: =(IF($F$22=1,0,(VLOOKUP($I$24,Tablas!$A$80:$G$146,3,TRUE))))*1.1494 -> 1102.800259 | H71: =(IF($F$22=1,0,(VLOOKUP($I$24,Tablas!$A$80:$G$146,4,TRUE))))*1.1494 -> 966.5687733 | I71: =(IF($F$22=1,0,(VLOOKUP($I$24,Tablas!$A$80:$G$146,5,TRUE))))*1.1494 -> 795.5043376 | J71: =(IF($F$22=1,0,(VLOOKUP($I$24,Tablas!$A$80:$G$146,6,TRUE))))*1.1494 -> 689.7288869 | K71: =(IF($F$22=1,0,(VLOOKUP($I$24,Tablas!$A$80:$G$146,7,TRUE))))*1.1494 -> 534.8955117
E72: Prima para hijo (s) | G72: =G35*Tablas!$K$2 -> 252.356517 | H72: =H35*Tablas!$K$2 -> 221.1709962 | I72: =I35*Tablas!$K$2 -> 188.262065 | J72: =J35*Tablas!$K$2 -> 163.3136484 | K72: =K35*Tablas!$K$2 -> 126.6296279
E73: Total de Prima neta | G73: =(SUM(G70:G72)) -> 2143.275069 | H73: =(SUM(H70:H72)) -> 1878.562885 | I73: =(SUM(I70:I72)) -> 1559.969052 | J73: =(SUM(J70:J72)) -> 1352.557983 | K73: =(SUM(K70:K72)) -> 1048.973321
E74: Costo Administrativo Anual | G74: 86 | H74: 86 | I74: 86 | J74: 86 | K74: 86
E75: IVA (14.49%) | G75: =(G74)*0% -> 0 | H75: =(H74)*0% -> 0 | I75: =(I74)*0% -> 0 | J75: =(J74)*0% -> 0 | K75: =(K74)*0% -> 0
E77: TOTAL de primera cuota | G77: =SUM(G73:G75) -> 2229.275069 | H77: =SUM(H73:H75) -> 1964.562885 | I77: =SUM(I73:I75) -> 1645.969052 | J77: =SUM(J73:J75) -> 1438.557983 | K77: =SUM(K73:K75) -> 1134.973321
E78: Once (11) cuotas mensuales cada una de: | G78: =G73+G75 -> 2143.275069 | H78: =H73+H75 -> 1878.562885 | I78: =I73+I75 -> 1559.969052 | J78: =J73+J75 -> 1352.557983 | K78: =K73+K75 -> 1048.973321
E79: TOTAL ANUAL | G79: =G77+(G78*11) -> 25805.30083 | H79: =H77+(H78*11) -> 22628.75462 | I79: =I77+(I78*11) -> 18805.62862 | J79: =J77+(J78*11) -> 16316.69579 | K79: =K77+(K78*11) -> 12673.67985
E80: Ahorros en tarifas de prima para niños | G80: =G41*Tablas!$K$2*12 -> 2352.59192 | H80: =H41*Tablas!$K$2*12 -> 2063.715517 | I80: =I41*Tablas!$K$2*12 -> 1757.331453 | J80: =J41*Tablas!$K$2*12 -> 1524.260718 | K80: =K41*Tablas!$K$2*12 -> 1181.767104
E83: Tarifas en US$ - Efectivas a partir del 1ro. de Enero de 2021
E84: Este presupuesto solamente tiene carácter informativo y en ningún momento expresa compromiso legal para suministrarle cobertura de seguro. La emisión de una póliza de seguro Bupa está sujeta a todas las evaluaciones de riesgo por parte de Bupa y a la recepción de todos los pagos de prima requeridos.

Sheet Global Premier Health Plan
A23: Global Premier Health Plan | D23: Nombre del Asegurado Titular | F23: =+'INGRESO DE DATOS'!$D$22 -> JOHN DOE
E24: Cotizado por | F24: =+'INGRESO DE DATOS'!$D$28 -> NOMBRE DEL AGENTE
D26: Número de adultos en la póliza | F26: =+'INGRESO DE DATOS'!$D$24 -> 2 | H26: Edad del Asegurado Titular | I26: =+'INGRESO DE DATOS'!$D$26 -> 32
D28: Número de niños en la póliza | F28: =+'INGRESO DE DATOS'!$H$24 -> 2 | H28: Edad del/la conyuge | I28: =+'INGRESO DE DATOS'!$H$26 -> 46
F30: Fecha de la cotización : | G30: =NOW() -> 2021-11-18T04:56:41.600
H31: FALSE
E32: Deducibles | G32: PLAN 1 | H32: PLAN 2 | I32: PLAN 3 | J32: PLAN 4
E33: En el país de residencia | G33: 250 | H33: 2000 | I33: 5000 | J33: 10000
E34: Fuera del país de residencia | G34: 5000 | H34: 2000 | I34: 5000 | J34: 10000
E36: Tarifas Anuales
E37: Prima para Asegurado Titular | G37: =(VLOOKUP($I$26,Tablas!$A$155:$G$221,3,TRUE))*1.1494*0.9 -> 4996.131462 | H37: =(VLOOKUP($I$26,Tablas!$A$155:$G$221,4,TRUE))*1.1494*0.9 -> 4534.503687 | I37: =(VLOOKUP($I$26,Tablas!$A$155:$G$221,5,TRUE))*1.1494*0.9 -> 3389.666805 | J37: =(VLOOKUP($I$26,Tablas!$A$155:$G$221,6,TRUE))*1.1494*0.9 -> 2520.927297
E38: Prima para conyuge | G38: =(IF($F$26=1,0,(VLOOKUP($I$28,Tablas!$A$155:$G$221,3,TRUE))))*1.1494*0.9 -> 6988.604868 | H38: =(IF($F$26=1,0,(VLOOKUP($I$28,Tablas!$A$155:$G$221,4,TRUE))))*1.1494*0.9 -> 6343.205274 | I38: =(IF($F$26=1,0,(VLOOKUP($I$28,Tablas!$A$155:$G$221,5,TRUE))))*1.1494*0.9 -> 4633.86357 | J38: =(IF($F$26=1,0,(VLOOKUP($I$28,Tablas!$A$155:$G$221,6,TRUE))))*1.1494*0.9 -> 3446.82072
E39: Prima para hijo (s) | G39: =(IF($F$28=0,0,(VLOOKUP($F$28,Tablas!$A$222:$G$224,3,TRUE))))*1.1494*0.9 -> 3020.364585 | H39: =(IF($F$28=0,0,(VLOOKUP($F$28,Tablas!$A$222:$G$224,4,TRUE))))*1.1494*0.9 -> 2741.629338 | I39: =(IF($F$28=0,0,(VLOOKUP($F$28,Tablas!$A$222:$G$224,5,TRUE))))*1.1494*0.9 -> 2123.487765 | J39: =(IF($F$28=0,0,(VLOOKUP($F$28,Tablas!$A$222:$G$224,6,TRUE))))*1.1494*0.9 -> 1580.085927
E40: Total de Prima neta | G40: =(SUM(G37:G39)) -> 15005.10091 | H40: =(SUM(H37:H39)) -> 13619.3383 | I40: =(SUM(I37:I39)) -> 10147.01814 | J40: =(SUM(J37:J39)) -> 7547.833944
E41: Costo Administrativo Anual | G41: 86 | H41: 86 | I41: 86 | J41: 86
E42: IVA (14.49%) | G42: =(G41)*0% -> 0 | H42: =(H41)*0% -> 0 | I42: =(I41)*0% -> 0 | J42: =(J41)*0% -> 0
E44: TOTAL ANUAL | G44: =SUM(G40:G42) -> 15091.10091 | H44: =SUM(H40:H42) -> 13705.3383 | I44: =SUM(I40:I42) -> 10233.01814 | J44: =SUM(J40:J42) -> 7633.833944
E46: Tarifas Semianuales
E47: Prima para Asegurado Titular | G47: =(VLOOKUP($I$26,Tablas!$A$530:$G$596,3,TRUE))*1.1494 -> 2775.62859 | H47: =(VLOOKUP($I$26,Tablas!$A$530:$G$596,4,TRUE))*1.1494 -> 2519.168715 | I47: =(VLOOKUP($I$26,Tablas!$A$530:$G$596,5,TRUE))*1.1494 -> 1883.148225 | J47: =(VLOOKUP($I$26,Tablas!$A$530:$G$596,6,TRUE))*1.1494 -> 1400.515165
E48: Prima para conyuge | G48: =(IF($F$26=1,0,(VLOOKUP($I$28,Tablas!$A$530:$G$596,3,TRUE))))*1.1494 -> 3882.55826 | H48: =(IF($F$26=1,0,(VLOOKUP($I$28,Tablas!$A$530:$G$596,4,TRUE))))*1.1494 -> 3524.00293 | I48: =(IF($F$26=1,0,(VLOOKUP($I$28,Tablas!$A$530:$G$596,5,TRUE))))*1.1494 -> 2574.36865 | J48: =(IF($F$26=1,0,(VLOOKUP($I$28,Tablas!$A$530:$G$596,6,TRUE))))*1.1494 -> 1914.9004
E49: Prima para hijo (s) | G49: =(IF($F$28=0,0,(VLOOKUP($F$28,Tablas!$A$597:$G$599,3,TRUE))))*1.1494 -> 1677.980325 | H49: =(IF($F$28=0,0,(VLOOKUP($F$28,Tablas!$A$597:$G$599,4,TRUE))))*1.1494 -> 1523.12741 | I49: =(IF($F$28=0,0,(VLOOKUP($F$28,Tablas!$A$597:$G$599,5,TRUE))))*1.1494 -> 1179.715425 | J49: =(IF($F$28=0,0,(VLOOKUP($F$28,Tablas!$A$597:$G$599,6,TRUE))))*1.1494 -> 877.825515
E50: Total de Prima neta | G50: =(SUM(G47:G49)) -> 8336.167175 | H50: =(SUM(H47:H49)) -> 7566.299055 | I50: =(SUM(I47:I49)) -> 5637.2323 | J50: =(SUM(J47:J49)) -> 4193.24108
E51: Costo Administrativo Anual | G51: 86 | H51: 86 | I51: 86 | J51: 86
E52: IVA (14.49%) | G52: =(G51)*0% -> 0 | H52: =(H51)*0% -> 0 | I52: =(I51)*0% -> 0 | J52: =(J51)*0% -> 0
E53: TOTAL de primera cuota | G53: =SUM(G50:G52) -> 8422.167175 | H53: =SUM(H50:H52) -> 7652.299055 | I53: =SUM(I50:I52) -> 5723.2323 | J53: =SUM(J50:J52) -> 4279.24108
E54: Costo de segunda cuota | G54: =G50+G52 -> 8336.167175 | H54: =H50+H52 -> 7566.299055 | I54: =I50+I52 -> 5637.2323 | J54: =J50+J52 -> 4193.24108
E55: TOTAL ANUAL | G55: =G53+G54 -> 16758.33435 | H55: =H53+H54 -> 15218.59811 | I55: 11360.4646 | J55: =J53+J54 -> 8472.48216
E57: Tarifas Trimestrales
E58: Prima para Asegurado Titular | G58: =(VLOOKUP($I$26,Tablas!$A$755:$G$821,3,TRUE))*1.1494 -> 1387.814295 | H58: =(VLOOKUP($I$26,Tablas!$A$755:$G$821,4,TRUE))*1.1494 -> 1259.584357 | I58: =(VLOOKUP($I$26,Tablas!$A$755:$G$821,5,TRUE))*1.1494 -> 941.5741125 | J58: =(VLOOKUP($I$26,Tablas!$A$755:$G$821,6,TRUE))*1.1494 -> 700.2575825
E59: Prima para conyuge | G59: =(IF($F$26=1,0,(VLOOKUP($I$28,Tablas!$A$755:$G$821,3,TRUE))))*1.1494 -> 1941.27913 | H59: =(IF($F$26=1,0,(VLOOKUP($I$28,Tablas!$A$755:$G$821,4,TRUE))))*1.1494 -> 1762.001465 | I59: =(IF($F$26=1,0,(VLOOKUP($I$28,Tablas!$A$755:$G$821,5,TRUE))))*1.1494 -> 1287.184325 | J59: =(IF($F$26=1,0,(VLOOKUP($I$28,Tablas!$A$755:$G$821,6,TRUE))))*1.1494 -> 957.4502
E60: Prima para hijo (s) | G60: =(IF($F$28=0,0,(VLOOKUP($F$28,Tablas!$A$822:$G$824,3,TRUE))))*1.1494 -> 838.9901625 | H60: =(IF($F$28=0,0,(VLOOKUP($F$28,Tablas!$A$822:$G$824,4,TRUE))))*1.1494 -> 761.563705 | I60: =(IF($F$28=0,0,(VLOOKUP($F$28,Tablas!$A$822:$G$824,5,TRUE))))*1.1494 -> 589.8577125 | J60: =(IF($F$28=0,0,(VLOOKUP($F$28,Tablas!$A$822:$G$824,6,TRUE))))*1.1494 -> 438.9127575
E61: Total de Prima neta | G61: =(SUM(G58:G60)) -> 4168.083588 | H61: =(SUM(H58:H60)) -> 3783.149527 | I61: =(SUM(I58:I60)) -> 2818.61615 | J61: =(SUM(J58:J60)) -> 2096.62054
E62: Costo Administrativo Anual | G62: 86 | H62: 86 | I62: 86 | J62: 86
E63: IVA (14.49%) | G63: =(G62)*0% -> 0 | H63: =(H62)*0% -> 0 | I63: =(I62)*0% -> 0 | J63: =(J62)*0% -> 0
E65: TOTAL de primera cuota | G65: =SUM(G61:G63) -> 4254.083588 | H65: =SUM(H61:H63) -> 3869.149527 | I65: =SUM(I61:I63) -> 2904.61615 | J65: =SUM(J61:J63) -> 2182.62054
E66: Tres (3) cuotas adicionales, cada una de: | G66: =G61+G63 -> 4168.083588 | H66: =H61+H63 -> 3783.149527 | I66: =I61+I63 -> 2818.61615 | J66: =J61+J63 -> 2096.62054
E67: TOTAL ANUAL | G67: =G65+(G66*3) -> 16758.33435 | H67: =H65+(H66*3) -> 15218.59811 | I67: 11360.4646 | J67: =J65+(J66*3) -> 8472.48216
E70: Tarifas Mensuales
E71: Prima para Asegurado Titular | G71: =(VLOOKUP($I$26,Tablas!$A$229:$G$295,3,TRUE))*1.1494 -> 518.1173368 | H71: =(VLOOKUP($I$26,Tablas!$A$229:$G$295,4,TRUE))*1.1494 -> 470.2448268 | I71: =(VLOOKUP($I$26,Tablas!$A$229:$G$295,5,TRUE))*1.1494 -> 351.521002 | J71: =(VLOOKUP($I$26,Tablas!$A$229:$G$295,6,TRUE))*1.1494 -> 261.4294975
E72: Prima para conyuge | G72: =(IF($F$26=1,0,(VLOOKUP($I$28,Tablas!$A$229:$G$295,3,TRUE))))*1.1494 -> 724.7442085 | H72: =(IF($F$26=1,0,(VLOOKUP($I$28,Tablas!$A229:$G$295,4,TRUE))))*1.1494 -> 657.8138803 | I72: =(IF($F$26=1,0,(VLOOKUP($I$28,Tablas!$A$229:$G$295,5,TRUE))))*1.1494 -> 480.5488147 | J72: =(IF($F$26=1,0,(VLOOKUP($I$28,Tablas!$A$229:$G$295,6,TRUE))))*1.1494 -> 357.4480747
E73: Prima para hijo (s) | G73: =(IF($F$28=0,0,(VLOOKUP($F$28,Tablas!$A$296:$G$298,3,TRUE))))*1.1494 -> 313.222994 | H73: =(IF($F$28=0,0,(VLOOKUP($F$28,Tablas!$A$296:$G$298,4,TRUE))))*1.1494 -> 284.3171165 | I73: =(IF($F$28=0,0,(VLOOKUP($F$28,Tablas!$A$296:$G$298,5,TRUE))))*1.1494 -> 220.213546 | J73: =(IF($F$28=0,0,(VLOOKUP($F$28,Tablas!$A$296:$G$298,6,TRUE))))*1.1494 -> 163.8607628
E74: Total de Prima neta | G74: =SUM(G71:G73) -> 1556.084539 | H74: =SUM(H71:H73) -> 1412.375824 | I74: =SUM(I71:I73) -> 1052.283363 | J74: =SUM(J71:J73) -> 782.7383349
E75: Costo Administrativo Anual | G75: 86 | H75: 86 | I75: 86 | J75: 86
E76: IVA (14.49%) | G76: =(G75)*0% -> 0 | H76: =(H75)*0% -> 0 | I76: =(I75)*0% -> 0 | J76: =(J75)*0% -> 0
E78: TOTAL de primera cuota | G78: =SUM(G74:G76) -> 1642.084539 | H78: =SUM(H74:H76) -> 1498.375824 | I78: =SUM(I74:I76) -> 1138.283363 | J78: =SUM(J74:J76) -> 868.7383349
E79: Once (11) cuotas mensuales cada una de: | G79: =G74+G76 -> 1556.084539 | H79: =H74+H76 -> 1412.375824 | I79: =I74+I76 -> 1052.283363 | J79: =J74+J76 -> 782.7383349
E80: TOTAL ANUAL | G80: =G78+(G79*11) -> 18759.01447 | H80: =H78+(H79*11) -> 17034.50988 | I80: =I78+(I79*11) -> 12713.40035 | J80: =J78+(J79*11) -> 9478.860019
E83: Tarifas en US$ - Efectivas a partir del 1ro. de Enero de 2020
E84: Este presupuesto solamente tiene carácter informativo y en ningún momento expresa compromiso legal para suministrarle cobertura de seguro. La emisión de una póliza de seguro Bupa está sujeta a todas las evaluaciones de riesgo por parte de Bupa y a la recepción de todos los pagos de prima requeridos.

Sheet Global Select Health Plan
A23: Global Select Health Plan | D23: Nombre del Asegurado Titular | F23: =+'INGRESO DE DATOS'!$D$22 -> JOHN DOE
E24: Cotizado por | F24: =+'INGRESO DE DATOS'!$D$28 -> NOMBRE DEL AGENTE
D26: Número de adultos en la póliza | F26: =+'INGRESO DE DATOS'!$D$24 -> 2 | H26: Edad del Asegurado Titular | I26: =+'INGRESO DE DATOS'!$D$26 -> 32
H28: Edad del/la conyuge | I28: =+'INGRESO DE DATOS'!$H$26 -> 46
D29: Número de niños en la póliza | F29: =+'INGRESO DE DATOS'!$H$24 -> 2
F31: Fecha de la cotización: | G31: =NOW() -> 2021-11-18T04:56:41.600
H32: FALSE
E33: Deducibles | G33: PLAN 1 | H33: PLAN 2 | I33: PLAN 3 | J33: PLAN 4
E34: En el país de residencia | G34: 250 | H34: 2000 | I34: 5000 | J34: 10000
E35: Fuera del país de residencia | G35: 5000 | H35: 2000 | I35: 5000 | J35: 10000
E37: Tarifas Anuales
E38: Prima para Asegurado Titular | G38: =(VLOOKUP($I$26,Tablas!$A$305:$G$371,3,TRUE))*1.1494*0.9 -> 3330.754308 | H38: =(VLOOKUP($I$26,Tablas!$A$305:$G$371,4,TRUE))*1.1494*0.9 -> 3194.464203 | I38: =(VLOOKUP($I$26,Tablas!$A$305:$G$371,5,TRUE))*1.1494*0.9 -> 2396.067975 | J38: =(VLOOKUP($I$26,Tablas!$A$305:$G$371,6,TRUE))*1.1494*0.9 -> 1782.322857
E39: Prima para conyuge | G39: =(IF($F$26=1,0,(VLOOKUP($I$28,Tablas!$A$305:$G$371,3,TRUE))))*1.1494*0.9 -> 4837.859082 | H39: =(IF($F$26=1,0,(VLOOKUP($I$28,Tablas!$A$305:$G$371,4,TRUE))))*1.1494*0.9 -> 4640.897898 | I39: =(IF($F$26=1,0,(VLOOKUP($I$28,Tablas!$A$305:$G$371,5,TRUE))))*1.1494*0.9 -> 3396.701133 | J39: =(IF($F$26=1,0,(VLOOKUP($I$28,Tablas!$A$305:$G$371,6,TRUE))))*1.1494*0.9 -> 2527.082334
E40: Prima para hijo (s) | G40: =(IF($F$29=0,0,(VLOOKUP($F$29,Tablas!$A$372:$G$374,3,TRUE))))*1.1494*0.9 -> 2168.331606 | H40: =(IF($F$29=0,0,(VLOOKUP($F$29,Tablas!$A$372:$G$374,4,TRUE))))*1.1494*0.9 -> 2080.402506 | I40: =(IF($F$29=0,0,(VLOOKUP($F$29,Tablas!$A$372:$G$374,5,TRUE))))*1.1494*0.9 -> 1622.291895 | J40: =(IF($F$29=0,0,(VLOOKUP($F$29,Tablas!$A$372:$G$374,6,TRUE))))*1.1494*0.9 -> 1207.266543
E41: Total de Prima neta | G41: =(SUM(G38:G40)) -> 10336.945 | H41: =(SUM(H38:H40)) -> 9915.764607 | I41: =(SUM(I38:I40)) -> 7415.061003 | J41: =(SUM(J38:J40)) -> 5516.671734
E42: Costo Administrativo Anual | G42: 86 | H42: 86 | I42: 86 | J42: 86
E43: IVA (14.49%) | G43: =(G42)*0% -> 0 | H43: =(H42)*0% -> 0 | I43: =(I42)*0% -> 0 | J43: =(J42)*0% -> 0
E45: TOTAL ANUAL | G45: =SUM(G41:G43) -> 10422.945 | H45: =SUM(H41:H43) -> 10001.76461 | I45: =SUM(I41:I43) -> 7501.061003 | J45: =SUM(J41:J43) -> 5602.671734
E47: Tarifas Semianuales
E48: Prima para Asegurado Titular | G48: =(VLOOKUP($I$26,Tablas!$A$605:$G$671,3,TRUE))*1.1494 -> 1850.41906 | H48: =(VLOOKUP($I$26,Tablas!$A$605:$G$671,4,TRUE))*1.1494 -> 1774.702335 | I48: =(VLOOKUP($I$26,Tablas!$A$605:$G$671,5,TRUE))*1.1494 -> 1331.148875 | J48: =(VLOOKUP($I$26,Tablas!$A$605:$G$671,6,TRUE))*1.1494 -> 990.179365
E49: Prima para conyuge | G49: =(IF($F$26=1,0,(VLOOKUP($I$28,Tablas!$A$605:$G$671,3,TRUE))))*1.1494 -> 2687.69949 | H49: =(IF($F$26=1,0,(VLOOKUP($I$28,Tablas!$A$605:$G$671,4,TRUE))))*1.1494 -> 2578.27661 | I49: =(IF($F$26=1,0,(VLOOKUP($I$28,Tablas!$A$605:$G$671,5,TRUE))))*1.1494 -> 1887.056185 | J49: =(IF($F$26=1,0,(VLOOKUP($I$28,Tablas!$A$605:$G$671,6,TRUE))))*1.1494 -> 1403.93463
E50: Prima para hijo (s) | G50: =(IF($F$29=0,0,(VLOOKUP($F$29,Tablas!$A$672:$G$674,3,TRUE))))*1.1494 -> 1204.62867 | H50: =(IF($F$29=0,0,(VLOOKUP($F$29,Tablas!$A$672:$G$674,4,TRUE))))*1.1494 -> 1155.77917 | I50: =(IF($F$29=0,0,(VLOOKUP($F$29,Tablas!$A$672:$G$674,5,TRUE))))*1.1494 -> 901.273275 | J50: =(IF($F$29=0,0,(VLOOKUP($F$29,Tablas!$A$672:$G$674,6,TRUE))))*1.1494 -> 670.703635
E51: Total de Prima neta | G51: =(SUM(G48:G50)) -> 5742.74722 | H51: =(SUM(H48:H50)) -> 5508.758115 | I51: =(SUM(I48:I50)) -> 4119.478335 | J51: =(SUM(J48:J50)) -> 3064.81763
E52: Costo Administrativo Anual | G52: 86 | H52: 86 | I52: 86 | J52: 86
E53: IVA (14.49%) | G53: =(G52)*0% -> 0 | H53: =(H52)*0% -> 0 | I53: =(I52)*0% -> 0
E54: TOTAL de primera cuota | G54: =SUM(G51:G53) -> 5828.74722 | H54: =SUM(H51:H53) -> 5594.758115 | I54: =SUM(I51:I53) -> 4205.478335 | J54: =SUM(J51:J53) -> 3150.81763
E55: Costo de segunda cuota | G55: =G51+G53 -> 5742.74722 | H55: =H51+H53 -> 5508.758115 | I55: =I51+I53 -> 4119.478335 | J55: =J51+J53 -> 3064.81763
E56: TOTAL ANUAL | G56: =G54+G55 -> 11571.49444 | H56: =H54+H55 -> 11103.51623 | I56: 8324.95667 | J56: 6215.63526
E58: Tarifas Trimestrales
E59: Prima para Asegurado Titular | G59: =(VLOOKUP($I$26,Tablas!$A$830:$G$896,3,TRUE))*1.1494 -> 925.20953 | H59: =(VLOOKUP($I$26,Tablas!$A$830:$G$896,4,TRUE))*1.1494 -> 887.3511675 | I59: =(VLOOKUP($I$26,Tablas!$A$830:$G$896,5,TRUE))*1.1494 -> 665.5744375 | J59: =(VLOOKUP($I$26,Tablas!$A$830:$G$896,6,TRUE))*1.1494 -> 495.0896825
E60: Prima para conyuge | G60: =(IF($F$26=1,0,(VLOOKUP($I$28,Tablas!$A$830:$G$896,3,TRUE))))*1.1494 -> 1343.849745 | H60: =(IF($F$26=1,0,(VLOOKUP($I$28,Tablas!$A$830:$G$896,4,TRUE))))*1.1494 -> 1289.138305 | I60: =(IF($F$26=1,0,(VLOOKUP($I$28,Tablas!$A$830:$G$896,5,TRUE))))*1.1494 -> 943.5280925 | J60: =(IF($F$26=1,0,(VLOOKUP($I$28,Tablas!$A$830:$G$896,6,TRUE))))*1.1494 -> 701.967315
E61: Prima para hijo (s) | G61: =(IF($F$29=0,0,(VLOOKUP($F$29,Tablas!$A$897:$G$899,3,TRUE))))*1.1494 -> 602.314335 | H61: =(IF($F$29=0,0,(VLOOKUP($F$29,Tablas!$A$897:$G$899,4,TRUE))))*1.1494 -> 577.889585 | I61: =(IF($F$29=0,0,(VLOOKUP($F$29,Tablas!$A$897:$G$899,5,TRUE))))*1.1494 -> 450.6366375 | J61: =(IF($F$29=0,0,(VLOOKUP($F$29,Tablas!$A$897:$G$899,6,TRUE))))*1.1494 -> 335.3518175
E62: Total de Prima neta | G62: =(SUM(G59:G61)) -> 2871.37361 | H62: =(SUM(H59:H61)) -> 2754.379057 | I62: =(SUM(I59:I61)) -> 2059.739167 | J62: =(SUM(J59:J61)) -> 1532.408815
E63: Costo Administrativo Anual | G63: 86 | H63: 86 | I63: 86 | J63: 86
E64: IVA (14.49%) | G64: =(G63)*0% -> 0 | H64: =(H63)*0% -> 0 | I64: =(I63)*0% -> 0 | J64: =(J63)*0% -> 0
E66: TOTAL de primera cuota | G66: =SUM(G62:G64) -> 2957.37361 | H66: =SUM(H62:H64) -> 2840.379057 | I66: =SUM(I62:I64) -> 2145.739167 | J66: =SUM(J62:J64) -> 1618.408815
E67: Tres (3) cuotas adicionales, cada una de: | G67: =G62+G64 -> 2871.37361 | H67: =H62+H64 -> 2754.379057 | I67: =I62+I64 -> 2059.739167 | J67: =J62+J64 -> 1532.408815
E68: TOTAL ANUAL | G68: =G66+(G67*3) -> 11571.49444 | H68: =H66+(H67*3) -> 11103.51623 | I68: 8324.95667 | J68: =J66+(J67*3) -> 6215.63526
E71: Tarifas Mensuales
E72: Prima para Asegurado Titular | G72: =(VLOOKUP($I$26,Tablas!$A$379:$G$445,3,TRUE))*1.1494 -> 345.4115579 | H72: =(VLOOKUP($I$26,Tablas!$A$379:$G$445,4,TRUE))*1.1494 -> 331.2777692 | I72: =(VLOOKUP($I$26,Tablas!$A$379:$G$445,5,TRUE))*1.1494 -> 248.4811233 | J72: =(VLOOKUP($I$26,Tablas!$A$379:$G$445,6,TRUE))*1.1494 -> 184.8334815
E73: Prima para conyuge | G73: =(IF($F$26=1,0,(VLOOKUP($I$28,Tablas!$A$379:$G$445,3,TRUE))))*1.1494 -> 501.7039048 | H73: =(IF($F$26=1,0,(VLOOKUP($I$28,Tablas!$A$379:$G$445,4,TRUE))))*1.1494 -> 481.2783005 | I73: =(IF($F$26=1,0,(VLOOKUP($I$28,Tablas!$A$379:$G$445,5,TRUE))))*1.1494 -> 352.2504879 | J73: =(IF($F$26=1,0,(VLOOKUP($I$28,Tablas!$A$379:$G$445,6,TRUE))))*1.1494 -> 262.0677976
E74: Prima para hijo (s) | G74: =(IF($F$29=0,0,(VLOOKUP($F$29,Tablas!$A$446:$G$448,3,TRUE))))*1.1494 -> 224.8640184 | H74: =(IF($F$29=0,0,(VLOOKUP($F$29,Tablas!$A$446:$G$448,4,TRUE))))*1.1494 -> 215.7454451 | I74: =(IF($F$29=0,0,(VLOOKUP($F$29,Tablas!$A$446:$G$448,5,TRUE))))*1.1494 -> 168.237678 | J74: =(IF($F$29=0,0,(VLOOKUP($F$29,Tablas!$A$446:$G$448,6,TRUE))))*1.1494 -> 125.1980119
E75: Total de Prima neta | G75: =(SUM(G72:G74)) -> 1071.979481 | H75: =(SUM(H72:H74)) -> 1028.301515 | I75: =(SUM(I72:I74)) -> 768.9692892 | J75: =(SUM(J72:J74)) -> 572.0992909
E76: Costo Administrativo Anual | G76: 86 | H76: 86 | I76: 86 | J76: 86
E77: IVA (14.49%) | G77: =(G76)*0% -> 0 | H77: =(H76)*0% -> 0 | I77: =(I76)*0% -> 0 | J77: =(J76)*0% -> 0
E79: TOTAL de primera cuota | G79: =SUM(G75:G77) -> 1157.979481 | H79: =SUM(H75:H77) -> 1114.301515 | I79: =SUM(I75:I77) -> 854.9692892 | J79: =SUM(J75:J77) -> 658.0992909
E80: Once (11) cuotas mensuales cada una de: | G80: =G75+G77 -> 1071.979481 | H80: =H75+H77 -> 1028.301515 | I80: =I75+I77 -> 768.9692892 | J80: =J75+J77 -> 572.0992909
E81: TOTAL ANUAL | G81: =G79+(G80*11) -> 12949.75377 | H81: =H79+(H80*11) -> 12425.61818 | I81: =I79+(I80*11) -> 9313.63147 | J81: =J79+(J80*11) -> 6951.191491
E83: Tarifas en US$ - Efectivas a partir del 1ro. de Enero de 2021
E84: Este presupuesto solamente tiene carácter informativo y en ningún momento expresa compromiso legal para suministrarle cobertura de seguro. La emisión de una póliza de seguro Bupa está sujeta a todas las evaluaciones de riesgo por parte de Bupa y a la recepción de todos los pagos de prima requeridos.

Sheet Global Major Medical Health Pl
A23: Global Major Medical Health Plan | D23: Nombre del Asegurado Titular | F23: =+'INGRESO DE DATOS'!$D$22 -> JOHN DOE
E24: Cotizado Por | F24: =+'INGRESO DE DATOS'!$D$28 -> NOMBRE DEL AGENTE
D26: Número de adultos en la póliza | F26: =+'INGRESO DE DATOS'!$D$24 -> 2 | H26: Edad del Asegurado Titular | I26: =+'INGRESO DE DATOS'!$D$26 -> 32
D28: Número de niños en la póliza | F28: =+'INGRESO DE DATOS'!$H$24 -> 2 | H28: Edad del/la conyuge | I28: =+'INGRESO DE DATOS'!$H$26 -> 46
F30: Fecha de la cotización: | G30: =NOW() -> 2021-11-18T04:56:41.600
H31: FALSE
E32: Deducibles | G32: PLAN 1 | H32: PLAN 2
E33: En el país de residencia | G33: 10000 | H33: 20000
E34: Fuera del país de residencia | G34: 10000 | H34: 20000
E36: Tarifas Anuales
E37: Prima para Asegurado Titular | G37: =(VLOOKUP($I$26,Tablas!$A$1129:$G$1195,3,TRUE))*1.1494*0.9 -> 2134.918548 | H37: =(VLOOKUP($I$26,Tablas!$A$1129:$G$1195,4,TRUE))*1.1494*0.9 -> 1627.567641
E38: Prima para conyuge | G38: =(IF($F$26=1,0,(VLOOKUP($I$28,Tablas!$A$1129:$G$1195,3,TRUE))))*1.1494*0.9 -> 2994.865146 | H38: =(IF($F$26=1,0,(VLOOKUP($I$28,Tablas!$A$1129:$G$1195,4,TRUE))))*1.1494*0.9 -> 2276.484399
E39: Prima para hijo (s) | G39: =(IF($F$28=0,0,(VLOOKUP($F$28,Tablas!$A$1196:$G$1198,3,TRUE))))*1.1494*0.9 -> 1283.76486 | H39: =(IF($F$28=0,0,(VLOOKUP($F$28,Tablas!$A$1196:$G$1198,4,TRUE))))*1.1494*0.9 -> 1008.546777
E40: Total de Prima neta | G40: =(SUM(G37:G39)) -> 6413.548554 | H40: =(SUM(H37:H39)) -> 4912.598817
E41: Costo Administrativo Anual | G41: 86 | H41: 86
E42: IVA (14.49%) | G42: =(G41)*0% -> 0 | H42: =(H41)*0% -> 0
E44: TOTAL ANUAL | G44: =SUM(G40:G42) -> 6499.548554 | H44: =SUM(H40:H42) -> 4998.598817
E46: Tarifas Semianuales
E47: Prima para Asegurado Titular | G47: =(VLOOKUP($I$26,Tablas!$A$1353:$G$1419,3,TRUE))*1.1494 -> 1186.06586 | H47: =(VLOOKUP($I$26,Tablas!$A$1353:$G$1419,4,TRUE))*1.1494 -> 904.204245
E48: Prima para conyuge | G48: =(IF($F$26=1,0,(VLOOKUP($I$28,Tablas!$A$1353:$G$1419,3,TRUE))))*1.1494 -> 1663.81397 | H48: =(IF($F$26=1,0,(VLOOKUP($I$28,Tablas!$A$1353:$G$1419,4,TRUE))))*1.1494 -> 1264.713555
E49: Prima para hijo (s) | G49: =(IF($F$28=0,0,(VLOOKUP($F$28,Tablas!$A$1420:$G$1422,3,TRUE))))*1.1494 -> 713.2027 | H49: =(IF($F$28=0,0,(VLOOKUP($F$28,Tablas!$A$1420:$G$1422,4,TRUE))))*1.1494 -> 560.303765
E50: Total de Prima neta | G50: =(SUM(G47:G49)) -> 3563.08253 | H50: =(SUM(H47:H49)) -> 2729.221565
E51: Costo Administrativo Anual | G51: 86 | H51: 86
E52: IVA (14.49%) | G52: =(G51)*0% -> 0 | H52: =(H51)*0% -> 0
E53: TOTAL de primera cuota | G53: =SUM(G50:G52) -> 3649.08253 | H53: =SUM(H50:H52) -> 2815.221565
E54: Costo de segunda cuota | G54: =G50+G52 -> 3563.08253 | H54: =H50+H52 -> 2729.221565
E55: TOTAL ANUAL | G55: =G53+G54 -> 7212.16506 | H55: =H53+H54 -> 5544.44313
E57: Tarifas Trimestrales
E58: Prima para Asegurado Titular | G58: =(VLOOKUP($I$26,Tablas!$A$1278:$G$1344,3,TRUE))*1.1494 -> 593.03293 | H58: =(VLOOKUP($I$26,Tablas!$A$1278:$G$1344,4,TRUE))*1.1494 -> 452.1021225
E59: Prima para conyuge | G59: =(IF($F$26=1,0,(VLOOKUP($I$28,Tablas!$A$1278:$G$1344,3,TRUE))))*1.1494 -> 831.906985 | H59: =(IF($F$26=1,0,(VLOOKUP($I$28,Tablas!$A$1278:$G$1344,4,TRUE))))*1.1494 -> 632.3567775
E60: Prima para hijo (s) | G60: =(IF($F$28=0,0,(VLOOKUP($F$28,Tablas!$A$1345:$G$1347,3,TRUE))))*1.1494 -> 356.60135 | H60: =(IF($F$28=0,0,(VLOOKUP($F$28,Tablas!$A$1345:$G$1347,4,TRUE))))*1.1494 -> 280.1518825
E61: Total de Prima neta | G61: =(SUM(G58:G60)) -> 1781.541265 | H61: =(SUM(H58:H60)) -> 1364.610783
E62: Costo Administrativo Anual | G62: 86 | H62: 86
E63: IVA (14.49%) | G63: =(G62)*0% -> 0 | H63: =(H62)*0% -> 0
E65: TOTAL de primera cuota | G65: =SUM(G61:G63) -> 1867.541265 | H65: =SUM(H61:H63) -> 1450.610783
E66: Tres (3) cuotas adicionales, cada una de: | G66: =G61+G63 -> 1781.541265 | H66: =H61+H63 -> 1364.610783
E67: TOTAL ANUAL | G67: =G65+(G66*3) -> 7212.16506 | H67: =H65+(H66*3) -> 5544.44313
E69: Tarifas Mensuales
E70: Prima para Asegurado Titular | G70: =(VLOOKUP($I$26,Tablas!$A$1203:$G$1269,3,TRUE))*1.1494 -> 221.3989605 | H70: =(VLOOKUP($I$26,Tablas!$A$1203:$G$1269,4,TRUE))*1.1494 -> 168.7847924
E71: Prima para conyuge | G71: =(IF($F$26=1,0,(VLOOKUP($I$28,Tablas!$A$1203:$G$1269,3,TRUE))))*1.1494 -> 310.5786077 | H71: =(IF($F$26=1,0,(VLOOKUP($I$28,Tablas!$A$1203:$G$1269,4,TRUE))))*1.1494 -> 236.0798636
E72: Prima para hijo (s) | G72: =(IF($F$28=0,0,(VLOOKUP($F$28,Tablas!$A$1270:$G$1272,3,TRUE))))*1.1494 -> 133.1311707 | H72: =(IF($F$28=0,0,(VLOOKUP($F$28,Tablas!$A$1270:$G$1272,4,TRUE))))*1.1494 -> 104.5900361
E73: Total de Prima neta | G73: =(SUM(G70:G72)) -> 665.1087389 | H73: =(SUM(H70:H72)) -> 509.4546921
E74: Costo Administrativo Anual | G74: 86 | H74: 86
E75: IVA (14.49%) | G75: =(G74)*0% -> 0 | H75: =(H74)*0% -> 0
E77: TOTAL de primera cuota | G77: =SUM(G73:G75) -> 751.1087389 | H77: =SUM(H73:H75) -> 595.4546921
E78: Once (11) cuotas mensuales cada una de: | G78: =G73+G75 -> 665.1087389 | H78: =H73+H75 -> 509.4546921
E79: TOTAL ANUAL | G79: =G77+(G78*11) -> 8067.304867 | H79: =H77+(H78*11) -> 6199.456306
E81: Tarifas en US$ - Efectivas a partir del 1ro. de Enero de 2021
E82: Este presupuesto solamente tiene carácter informativo y en ningún momento expresa compromiso legal para suministrarle cobertura de seguro. La emisión de una póliza de seguro Bupa está sujeta a todas las evaluaciones de riesgo por parte de Bupa y a la recepción de todos los pagos de prima requeridos.

Sheet Resumen tarifas
A20: Cotización de Seguro Médico - Global Health Plans
A22: Nombre del Asegurado Titular | C22: =+'INGRESO DE DATOS'!$D$22 -> JOHN DOE
B23: Cotizado por | C23: =+'INGRESO DE DATOS'!$D$28 -> NOMBRE DEL AGENTE
A25: Número de adultos en la póliza | C25: =+'INGRESO DE DATOS'!$D$24 -> 2 | E25: Edad del Asegurado Titular | G25: =+'INGRESO DE DATOS'!$D$26 -> 32
A28: Número de niños en la póliza | C28: =+'INGRESO DE DATOS'!$H$24 -> 2 | E28: Edad del/la cónyuge | G28: =+'INGRESO DE DATOS'!$H$26 -> 46
C31: Fecha de la Cotización: | D31: =NOW() -> 2021-11-18T04:56:41.600
A33: Bupa Global Ultimtate Health Plan
A34: Deducibles | C34: PLAN 1 | D34: PLAN 2
A35: En el país de residencia | C35: 0 | D35: 1000
A36: Fuera del país de residencia | C36: 0 | D36: 1000
C37: Tarifas Anuales
C38: ='Global Ultimate Health Plan'!G41 -> 57604.04492 | D38: ='Global Ultimate Health Plan'!H41 -> 37199.32142
C39: Tarifas Semi-anuales
C40: ='Global Ultimate Health Plan'!G52 -> 31546.66228 | D40: ='Global Ultimate Health Plan'!H52 -> 20355.35677
C41: Tarifas Trimestrales
C42: ='Global Ultimate Health Plan'!G65 -> 15977.0308 | D42: ='Global Ultimate Health Plan'!H65 -> 10309.12437
C43: Tarifas Mensuales
C44: ='Global Ultimate Health Plan'!G80 -> 5888.710292 | D44: ='Global Ultimate Health Plan'!H80 -> 3799.666597
A45: Ahorros en tarifas de prima para niños* | C45: ='Global Ultimate Health Plan'!G42 -> 5709.0698 | D45: ='Global Ultimate Health Plan'!H42 -> 3683.827
A47: Bupa Global Elite Health Plan
A48: Deducibles | D48: PLAN 1 | E48: PLAN 2 | F48: PLAN 3 | G48: PLAN 4 | H48: PLAN 5
A49: En el país de residencia | D49: 250 | E49: 2000 | F49: 3500 | G49: 5000 | H49: 10000
A50: Fuera del país de residencia | D50: 5000 | E50: 2000 | F50: 3500 | G50: 5000 | H50: 10000
D51: Tarifas Anuales
D52: =+'Global Elite Health Plan'!G40 -> 21023.67729 | E52: =+'Global Elite Health Plan'!H40 -> 18437.68246 | F52: =+'Global Elite Health Plan'!I40 -> 15330.26807 | G52: =+'Global Elite Health Plan'!J40 -> 13303.50231 | H52: =+'Global Elite Health Plan'!K40 -> 10336.77448
D53: Tarifas Semi-anuales
D54: =+'Global Elite Health Plan'!G51 -> 11631.89273 | E54: =+'Global Elite Health Plan'!H51 -> 10195.2475 | F54: =+'Global Elite Health Plan'!I51 -> 8356.977062 | G54: =+'Global Elite Health Plan'!J51 -> 7245.846335 | H54: =+'Global Elite Health Plan'!K51 -> 5619.499931
D55: Tarifas Trimestrales
D56: =+'Global Elite Health Plan'!G64 -> 5740.915364 | E56: =+'Global Elite Health Plan'!H64 -> 5031.864871 | F56: =+'Global Elite Health Plan'!I64 -> 4178.488531 | G56: =+'Global Elite Health Plan'!J64 -> 3622.923167 | H56: =+'Global Elite Health Plan'!K64 -> 2809.749966
D57: Tarifas Mensuales
D58: =+'Global Elite Health Plan'!G78 -> 2143.275069 | E58: =+'Global Elite Health Plan'!H78 -> 1878.562885 | F58: =+'Global Elite Health Plan'!I78 -> 1559.969052 | G58: =+'Global Elite Health Plan'!J78 -> 1352.557983 | H58: =+'Global Elite Health Plan'!K78 -> 1048.973321
A59: Ahorros en tarifas de prima para niños* | D59: =+'Global Elite Health Plan'!G41 -> 2100.5285 | E59: =+'Global Elite Health Plan'!H41 -> 1842.60314 | F59: =+'Global Elite Health Plan'!I41 -> 1569.04594 | G59: =+'Global Elite Health Plan'!J41 -> 1360.94707 | H59: =+'Global Elite Health Plan'!K41 -> 1055.1492
A61: Bupa Global Premier Health Plan
A62: Deducibles | E62: PLAN 1 | F62: PLAN 2 | G62: PLAN 3 | H62: PLAN 4
A63: En el país de residencia | E63: 250 | F63: 2000 | G63: 5000 | H63: 10000
A64: Fuera del país de residencia | E64: 5000 | F64: 2000 | G64: 5000 | H64: 10000
E65: Tarifas Anuales
E66: =+'Global Premier Health Plan'!G44 -> 15091.10091 | F66: =+'Global Premier Health Plan'!H44 -> 13705.3383 | G66: =+'Global Premier Health Plan'!I44 -> 10233.01814 | H66: =+'Global Premier Health Plan'!J44 -> 7633.833944
E67: Tarifas Semi-anuales
E68: =+'Global Premier Health Plan'!G54 -> 8336.167175 | F68: =+'Global Premier Health Plan'!H54 -> 7566.299055 | G68: =+'Global Premier Health Plan'!I54 -> 5637.2323 | H68: =+'Global Premier Health Plan'!J54 -> 4193.24108
E69: Tarifas Trimestrales
E70: =+'Global Premier Health Plan'!G66 -> 4168.083588 | F70: =+'Global Premier Health Plan'!H66 -> 3783.149527 | G70: =+'Global Premier Health Plan'!I66 -> 2818.61615 | H70: =+'Global Premier Health Plan'!J66 -> 2096.62054
E71: Tarifas Mensuales
E72: =+'Global Premier Health Plan'!G79 -> 1556.084539 | F72: =+'Global Premier Health Plan'!H79 -> 1412.375824 | G72: =+'Global Premier Health Plan'!I79 -> 1052.283363 | H72: =+'Global Premier Health Plan'!J79 -> 782.7383349
A74: Bupa Global Select Health Plan
A75: Deducibles | E75: PLAN 1 | F75: PLAN 2 | G75: PLAN 3 | H75: PLAN 4
A76: En el país de residencia | E76: 250 | F76: 2000 | G76: 5000 | H76: 10000
A77: Fuera del país de residencia | E77: 5000 | F77: 2000 | G77: 5000 | H77: 10000
E78: Tarifas Anuales
E79: =+'Global Select Health Plan'!G45 -> 10422.945 | F79: =+'Global Select Health Plan'!H45 -> 10001.76461 | G79: =+'Global Select Health Plan'!I45 -> 7501.061003 | H79: =+'Global Select Health Plan'!J45 -> 5602.671734
E80: Tarifas Semi-anuales
E81: =+'Global Select Health Plan'!G55 -> 5742.74722 | F81: =+'Global Select Health Plan'!H55 -> 5508.758115 | G81: =+'Global Select Health Plan'!I55 -> 4119.478335 | H81: =+'Global Select Health Plan'!J55 -> 3064.81763
E82: Tarifas Trimestrales
E83: =+'Global Select Health Plan'!G67 -> 2871.37361 | F83: =+'Global Select Health Plan'!H67 -> 2754.379057 | G83: =+'Global Select Health Plan'!I67 -> 2059.739167 | H83: =+'Global Select Health Plan'!J67 -> 1532.408815
E84: Tarifas Mensuales
E85: =+'Global Select Health Plan'!G80 -> 1071.979481 | F85: =+'Global Select Health Plan'!H80 -> 1028.301515 | G85: =+'Global Select Health Plan'!I80 -> 768.9692892 | H85: =+'Global Select Health Plan'!J80 -> 572.0992909
A87: Bupa Global Major Medical Health Plan
A88: Deducibles | C88: PLAN 1 | D88: PLAN 2
A89: En el país de residencia | C89: 10000 | D89: 20000
A90: Fuera del país de residencia | C90: 10000 | D90: 20000
C91: Tarifas Anuales
C92: ='Global Major Medical Health Pl'!G44 -> 6499.548554 | D92: ='Global Major Medical Health Pl'!H44 -> 4998.598817
C93: Tarifas Semi-anuales
C94: ='Global Major Medical Health Pl'!G54 -> 3563.08253 | D94: ='Global Major Medical Health Pl'!H54 -> 2729.221565
C95: Tarifas Trimestrales
C96: ='Global Major Medical Health Pl'!G66 -> 1781.541265 | D96: ='Global Major Medical Health Pl'!H66 -> 1364.610783
C97: Tarifas Mensuales
C98: ='Global Major Medical Health Pl'!G78 -> 665.1087389 | D98: ='Global Major Medical Health Pl'!H78 -> 509.4546921
A100: Notas:
A101: Primas anuales incluyen US$86.00 por Costo Administrativo Anual
A102: Costo administrativo anual incluido en el primer pago de los pagos semestrales, trimestrales y mensuales
A103: *Basado en un modo de pago anual
A105: Tarifas en US$ - Efectivas a partir del 1ro. de Enero de 2021
A106: Este presupuesto solamente tiene carácter informativo y en ningún momento expresa compromiso legal para suministrarle cobertura de seguro. La emisión de una póliza de seguro Bupa está sujeta a todas las evaluaciones de riesgo por parte de Bupa y a la recepción de todos los pagos de prima requeridos.

Sheet Tablas (hidden)
A2: BUPA GLOBAL ELITE | I2: FACTOR MENSUAL: | K2: 0.09333333333 | L2: 0.09333333333 | M2: 0.09333333333 | N2: 0.09333333333 | O2: 0.09333333333 | P2: 0.09333333333
A3: TARIFAS ANUALES | I3: FACTOR TRIMESTRAL: | K3: 0.25 | L3: 0.275 | M3: 0.275 | N3: 0.275 | O3: 0.275 | P3: 0.275
A4: EDAD | I4: FACTOR SEMIANUAL: | K4: 0.5 | L4: 0.53 | M4: 0.53 | N4: 0.53 | O4: 0.53 | P4: 0.53
C5: 250 | D5: 2000 | E5: 3500 | F5: 5000 | G5: 10000
A6: 18 | C6: =O6 -> 6183.75 | D6: =P6 -> 5418.75 | E6: 4581.5 | F6: 3974.6 | G6: 3082.1 | I6: 7275 | J6: 6375 | K6: 5390 | L6: 4676 | M6: 3626 | O6: =(I6)*0.85 -> 6183.75 | P6: =(J6)*0.85 -> 5418.75 | Q6: 4581.5 | R6: 3974.6 | S6: 3082.1
A7: 19 | C7: =O7 -> 6183.75 | D7: =P7 -> 5418.75 | E7: =Q7 -> 4581.5 | F7: =R7 -> 3974.6 | G7: =S7 -> 3082.1 | I7: 7275 | J7: 6375 | K7: 5390 | L7: 4676 | M7: 3626 | O7: =(I7)*0.85 -> 6183.75 | P7: =(J7)*0.85 -> 5418.75 | Q7: =(K7)*0.85 -> 4581.5 | R7: =(L7)*0.85 -> 3974.6 | S7: =(M7)*0.85 -> 3082.1
A8: 20 | C8: 6183.75 | D8: 5418.75 | E8: 4581.5 | F8: 3974.6 | G8: 3082.1 | I8: 7275 | J8: 6375 | K8: 5390 | L8: 4676 | M8: 3626 | O8: 6183.75 | P8: 5418.75 | Q8: 4581.5 | R8: 3974.6 | S8: 3082.1
A9: 21 | C9: 6183.75 | D9: 5418.75 | E9: 4581.5 | F9: 3974.6 | G9: 3082.1 | I9: 7275 | J9: 6375 | K9: 5390 | L9: 4676 | M9: 3626 | O9: 6183.75 | P9: 5418.75 | Q9: 4581.5 | R9: 3974.6 | S9: 3082.1
A10: 22 | C10: 6183.75 | D10: 5418.75 | E10: 4581.5 | F10: 3974.6 | G10: 3082.1 | I10: 7275 | J10: 6375 | K10: 5390 | L10: 4676 | M10: 3626 | O10: 6183.75 | P10: 5418.75 | Q10: 4581.5 | R10: 3974.6 | S10: 3082.1
A11: 23 | C11: 6183.75 | D11: 5418.75 | E11: 4581.5 | F11: 3974.6 | G11: 3082.1 | I11: 7275 | J11: 6375 | K11: 5390 | L11: 4676 | M11: 3626 | O11: 6183.75 | P11: 5418.75 | Q11: 4581.5 | R11: 3974.6 | S11: 3082.1
A12: 24 | C12: 6183.75 | D12: 5418.75 | E12: 4581.5 | F12: 3974.6 | G12: 3082.1 | I12: 7275 | J12: 6375 | K12: 5390 | L12: 4676 | M12: 3626 | O12: 6183.75 | P12: 5418.75 | Q12: 4581.5 | R12: 3974.6 | S12: 3082.1
A13: 25 | C13: 6606.2 | D13: 5790.2 | E13: 4866.25 | F13: 4219.4 | G13: 3273.35 | I13: 7772 | J13: 6812 | K13: 5725 | L13: 4964 | M13: 3851 | O13: 6606.2 | P13: 5790.2 | Q13: 4866.25 | R13: 4219.4 | S13: 3273.35
A14: 26 | C14: 6606.2 | D14: 5790.2 | E14: 4866.25 | F14: 4219.4 | G14: 3273.35 | I14: 7772 | J14: 6812 | K14: 5725 | L14: 4964 | M14: 3851 | O14: 6606.2 | P14: 5790.2 | Q14: 4866.25 | R14: 4219.4 | S14: 3273.35
A15: 27 | C15: 6606.2 | D15: 5790.2 | E15: 4866.25 | F15: 4219.4 | G15: 3273.35 | I15: 7772 | J15: 6812 | K15: 5725 | L15: 4964 | M15: 3851 | O15: 6606.2 | P15: 5790.2 | Q15: 4866.25 | R15: 4219.4 | S15: 3273.35
A16: 28 | C16: 6606.2 | D16: 5790.2 | E16: 4866.25 | F16: 4219.4 | G16: 3273.35 | I16: 7772 | J16: 6812 | K16: 5725 | L16: 4964 | M16: 3851 | O16: 6606.2 | P16: 5790.2 | Q16: 4866.25 | R16: 4219.4 | S16: 3273.35
A17: 29 | C17: 6606.2 | D17: 5790.2 | E17: 4866.25 | F17: 4219.4 | G17: 3273.35 | I17: 7772 | J17: 6812 | K17: 5725 | L17: 4964 | M17: 3851 | O17: 6606.2 | P17: 5790.2 | Q17: 4866.25 | R17: 4219.4 | S17: 3273.35
A18: 30 | C18: 7346.55 | D18: 6439.6 | E18: 5371.15 | F18: 4656.3 | G18: 3611.65 | I18: 8643 | J18: 7576 | K18: 6319 | L18: 5478 | M18: 4249 | O18: 7346.55 | P18: 6439.6 | Q18: 5371.15 | R18: 4656.3 | S18: 3611.65
A19: 31 | C19: 7346.55 | D19: 6439.6 | E19: 5371.15 | F19: 4656.3 | G19: 3611.65 | I19: 8643 | J19: 7576 | K19: 6319 | L19: 5478 | M19: 4249 | O19: 7346.55 | P19: 6439.6 | Q19: 5371.15 | R19: 4656.3 | S19: 3611.65
A20: 32 | C20: 7346.55 | D20: 6439.6 | E20: 5371.15 | F20: 4656.3 | G20: 3611.65 | I20: 8643 | J20: 7576 | K20: 6319 | L20: 5478 | M20: 4249 | O20: 7346.55 | P20: 6439.6 | Q20: 5371.15 | R20: 4656.3 | S20: 3611.65
A21: 33 | C21: 7346.55 | D21: 6439.6 | E21: 5371.15 | F21: 4656.3 | G21: 3611.65 | I21: 8643 | J21: 7576 | K21: 6319 | L21: 5478 | M21: 4249 | O21: 7346.55 | P21: 6439.6 | Q21: 5371.15 | R21: 4656.3 | S21: 3611.65
A22: 34 | C22: 7346.55 | D22: 6439.6 | E22: 5371.15 | F22: 4656.3 | G22: 3611.65 | I22: 8643 | J22: 7576 | K22: 6319 | L22: 5478 | M22: 4249 | O22: 7346.55 | P22: 6439.6 | Q22: 5371.15 | R22: 4656.3 | S22: 3611.65
A23: 35 | C23: 8201.65 | D23: 7186.75 | E23: 5960.2 | F23: 5168.85 | G23: 4008.6 | I23: 9649 | J23: 8455 | K23: 7012 | L23: 6081 | M23: 4716 | O23: 8201.65 | P23: 7186.75 | Q23: 5960.2 | R23: 5168.85 | S23: 4008.6
A24: 36 | C24: 8201.65 | D24: 7186.75 | E24: 5960.2 | F24: 5168.85 | G24: 4008.6 | I24: 9649 | J24: 8455 | K24: 7012 | L24: 6081 | M24: 4716 | O24: 8201.65 | P24: 7186.75 | Q24: 5960.2 | R24: 5168.85 | S24: 4008.6
A25: 37 | C25: 8201.65 | D25: 7186.75 | E25: 5960.2 | F25: 5168.85 | G25: 4008.6 | I25: 9649 | J25: 8455 | K25: 7012 | L25: 6081 | M25: 4716 | O25: 8201.65 | P25: 7186.75 | Q25: 5960.2 | R25: 5168.85 | S25: 4008.6
A26: 38 | C26: 8201.65 | D26: 7186.75 | E26: 5960.2 | F26: 5168.85 | G26: 4008.6 | I26: 9649 | J26: 8455 | K26: 7012 | L26: 6081 | M26: 4716 | O26: 8201.65 | P26: 7186.75 | Q26: 5960.2 | R26: 5168.85 | S26: 4008.6
A27: 39 | C27: 8201.65 | D27: 7186.75 | E27: 5960.2 | F27: 5168.85 | G27: 4008.6 | I27: 9649 | J27: 8455 | K27: 7012 | L27: 6081 | M27: 4716 | O27: 8201.65 | P27: 7186.75 | Q27: 5960.2 | R27: 5168.85 | S27: 4008.6
A28: 40 | C28: 9185.95 | D28: 8050.35 | E28: 6646.15 | F28: 5763 | G28: 4471 | I28: 10807 | J28: 9471 | K28: 7819 | L28: 6780 | M28: 5260 | O28: 9185.95 | P28: 8050.35 | Q28: 6646.15 | R28: 5763 | S28: 4471
A29: 41 | C29: 9185.95 | D29: 8050.35 | E29: 6646.15 | F29: 5763 | G29: 4471 | I29: 10807 | J29: 9471 | K29: 7819 | L29: 6780 | M29: 5260 | O29: 9185.95 | P29: 8050.35 | Q29: 6646.15 | R29: 5763 | S29: 4471
A30: 42 | C30: 9185.95 | D30: 8050.35 | E30: 6646.15 | F30: 5763 | G30: 4471 | I30: 10807 | J30: 9471 | K30: 7819 | L30: 6780 | M30: 5260 | O30: 9185.95 | P30: 8050.35 | Q30: 6646.15 | R30: 5763 | S30: 4471
A31: 43 | C31: 9185.95 | D31: 8050.35 | E31: 6646.15 | F31: 5763 | G31: 4471 | I31: 10807 | J31: 9471 | K31: 7819 | L31: 6780 | M31: 5260 | O31: 9185.95 | P31: 8050.35 | Q31: 6646.15 | R31: 5763 | S31: 4471
A32: 44 | C32: 9185.95 | D32: 8050.35 | E32: 6646.15 | F32: 5763 | G32: 4471 | I32: 10807 | J32: 9471 | K32: 7819 | L32: 6780 | M32: 5260 | O32: 9185.95 | P32: 8050.35 | Q32: 6646.15 | R32: 5763 | S32: 4471
A33: 45 | C33: 10279.9 | D33: 9010 | E33: 7415.4 | F33: 6429.4 | G33: 4986.1 | I33: 12094 | J33: 10600 | K33: 8724 | L33: 7564 | M33: 5866 | O33: 10279.9 | P33: 9010 | Q33: 7415.4 | R33: 6429.4 | S33: 4986.1
A34: 46 | C34: 10279.9 | D34: 9010 | E34: 7415.4 | F34: 6429.4 | G34: 4986.1 | I34: 12094 | J34: 10600 | K34: 8724 | L34: 7564 | M34: 5866 | O34: 10279.9 | P34: 9010 | Q34: 7415.4 | R34: 6429.4 | S34: 4986.1
A35: 47 | C35: 10279.9 | D35: 9010 | E35: 7415.4 | F35: 6429.4 | G35: 4986.1 | I35: 12094 | J35: 10600 | K35: 8724 | L35: 7564 | M35: 5866 | O35: 10279.9 | P35: 9010 | Q35: 7415.4 | R35: 6429.4 | S35: 4986.1
A36: 48 | C36: 10279.9 | D36: 9010 | E36: 7415.4 | F36: 6429.4 | G36: 4986.1 | I36: 12094 | J36: 10600 | K36: 8724 | L36: 7564 | M36: 5866 | O36: 10279.9 | P36: 9010 | Q36: 7415.4 | R36: 6429.4 | S36: 4986.1
A37: 49 | C37: 10279.9 | D37: 9010 | E37: 7415.4 | F37: 6429.4 | G37: 4986.1 | I37: 12094 | J37: 10600 | K37: 8724 | L37: 7564 | M37: 5866 | O37: 10279.9 | P37: 9010 | Q37: 7415.4 | R37: 6429.4 | S37: 4986.1
A38: 50 | C38: 11509.85 | D38: 10089.5 | E38: 8283.25 | F38: 7183.35 | G38: 5570.9 | I38: 13541 | J38: 11870 | K38: 9745 | L38: 8451 | M38: 6554 | O38: 11509.85 | P38: 10089.5 | Q38: 8283.25 | R38: 7183.35 | S38: 5570.9
A39: 51 | C39: 11509.85 | D39: 10089.5 | E39: 8283.25 | F39: 7183.35 | G39: 5570.9 | I39: 13541 | J39: 11870 | K39: 9745 | L39: 8451 | M39: 6554 | O39: 11509.85 | P39: 10089.5 | Q39: 8283.25 | R39: 7183.35 | S39: 5570.9
A40: 52 | C40: 11509.85 | D40: 10089.5 | E40: 8283.25 | F40: 7183.35 | G40: 5570.9 | I40: 13541 | J40: 11870 | K40: 9745 | L40: 8451 | M40: 6554 | O40: 11509.85 | P40: 10089.5 | Q40: 8283.25 | R40: 7183.35 | S40: 5570.9
A41: 53 | C41: 11509.85 | D41: 10089.5 | E41: 8283.25 | F41: 7183.35 | G41: 5570.9 | I41: 13541 | J41: 11870 | K41: 9745 | L41: 8451 | M41: 6554 | O41: 11509.85 | P41: 10089.5 | Q41: 8283.25 | R41: 7183.35 | S41: 5570.9
A42: 54 | C42: 11509.85 | D42: 10089.5 | E42: 8283.25 | F42: 7183.35 | G42: 5570.9 | I42: 13541 | J42: 11870 | K42: 9745 | L42: 8451 | M42: 6554 | O42: 11509.85 | P42: 10089.5 | Q42: 8283.25 | R42: 7183.35 | S42: 5570.9
A43: 55 | C43: 12867.3 | D43: 11279.5 | E43: 9248 | F43: 8019.75 | G43: 6220.3 | I43: 15138 | J43: 13270 | K43: 10880 | L43: 9435 | M43: 7318 | O43: 12867.3 | P43: 11279.5 | Q43: 9248 | R43: 8019.75 | S43: 6220.3
A44: 56 | C44: 12867.3 | D44: 11279.5 | E44: 9248 | F44: 8019.75 | G44: 6220.3 | I44: 15138 | J44: 13270 | K44: 10880 | L44: 9435 | M44: 7318 | O44: 12867.3 | P44: 11279.5 | Q44: 9248 | R44: 8019.75 | S44: 6220.3
A45: 57 | C45: 12867.3 | D45: 11279.5 | E45: 9248 | F45: 8019.75 | G45: 6220.3 | I45: 15138 | J45: 13270 | K45: 10880 | L45: 9435 | M45: 7318 | O45: 12867.3 | P45: 11279.5 | Q45: 9248 | R45: 8019.75 | S45: 6220.3
A46: 58 | C46: 12867.3 | D46: 11279.5 | E46: 9248 | F46: 8019.75 | G46: 6220.3 | I46: 15138 | J46: 13270 | K46: 10880 | L46: 9435 | M46: 7318 | O46: 12867.3 | P46: 11279.5 | Q46: 9248 | R46: 8019.75 | S46: 6220.3
A47: 59 | C47: 12867.3 | D47: 11279.5 | E47: 9248 | F47: 8019.75 | G47: 6220.3 | I47: 15138 | J47: 13270 | K47: 10880 | L47: 9435 | M47: 7318 | O47: 12867.3 | P47: 11279.5 | Q47: 9248 | R47: 8019.75 | S47: 6220.3
A48: 60 | C48: 13771.7 | D48: 12071.7 | E48: 9889.75 | F48: 8575.65 | G48: 6650.4 | I48: 16202 | J48: 14202 | K48: 11635 | L48: 10089 | M48: 7824 | O48: 13771.7 | P48: 12071.7 | Q48: 9889.75 | R48: 8575.65 | S48: 6650.4
A49: 61 | C49: 15345.9 | D49: 13452.1 | E49: 11015.15 | F49: 9553.15 | G49: 7407.75 | I49: 18054 | J49: 15826 | K49: 12959 | L49: 11239 | M49: 8715 | O49: 15345.9 | P49: 13452.1 | Q49: 11015.15 | R49: 9553.15 | S49: 7407.75
A50: 62 | C50: 17049.3 | D50: 14943.85 | E50: 12234.9 | F50: 10608 | G50: 8226.3 | I50: 20058 | J50: 17581 | K50: 14394 | L50: 12480 | M50: 9678 | O50: 17049.3 | P50: 14943.85 | Q50: 12234.9 | R50: 10608 | S50: 8226.3
A51: 63 | C51: 18878.5 | D51: 16549.5 | E51: 13549 | F51: 11747.85 | G51: 9111.15 | I51: 22210 | J51: 19470 | K51: 15940 | L51: 13821 | M51: 10719 | O51: 18878.5 | P51: 16549.5 | Q51: 13549 | R51: 11747.85 | S51: 9111.15
A52: 64 | C52: 20839.45 | D52: 18264.8 | E52: 14956.6 | F52: 12969.3 | G52: 10057.2 | I52: 24517 | J52: 21488 | K52: 17596 | L52: 15258 | M52: 11832 | O52: 20839.45 | P52: 18264.8 | Q52: 14956.6 | R52: 12969.3 | S52: 10057.2
A53: 65 | C53: 22926.2 | D53: 20096.55 | E53: 16461.1 | F53: 14274.05 | G53: 11070.4 | I53: 26972 | J53: 23643 | K53: 19366 | L53: 16793 | M53: 13024 | O53: 22926.2 | P53: 20096.55 | Q53: 16461.1 | R53: 14274.05 | S53: 11070.4
A54: 66 | C54: 25143.85 | D54: 22039.65 | E54: 18059.95 | F54: 15660.4 | G54: 12146.5 | I54: 29581 | J54: 25929 | K54: 21247 | L54: 18424 | M54: 14290 | O54: 25143.85 | P54: 22039.65 | Q54: 18059.95 | R54: 15660.4 | S54: 12146.5
A55: 67 | C55: 27489 | D55: 24094.1 | E55: 19755.7 | F55: 17130.05 | G55: 13285.5 | I55: 32340 | J55: 28346 | K55: 23242 | L55: 20153 | M55: 15630 | O55: 27489 | P55: 24094.1 | Q55: 19755.7 | R55: 17130.05 | S55: 13285.5
A56: 68 | C56: 29961.65 | D56: 26262.45 | E56: 21545.8 | F56: 18683 | G56: 14489.95 | I56: 35249 | J56: 30897 | K56: 25348 | L56: 21980 | M56: 17047 | O56: 29961.65 | P56: 26262.45 | Q56: 21545.8 | R56: 18683 | S56: 14489.95
A57: 69 | C57: 32565.2 | D57: 28543 | E57: 23431.95 | F57: 20319.25 | G57: 15758.15 | I57: 38312 | J57: 33580 | K57: 27567 | L57: 23905 | M57: 18539 | O57: 32565.2 | P57: 28543 | Q57: 23431.95 | R57: 20319.25 | S57: 15758.15
A58: 70 | C58: 35294.55 | D58: 30936.6 | E58: 25411.6 | F58: 22036.25 | G58: 17089.25 | I58: 41523 | J58: 36396 | K58: 29896 | L58: 25925 | M58: 20105 | O58: 35294.55 | P58: 30936.6 | Q58: 25411.6 | R58: 22036.25 | S58: 17089.25
A59: 71 | C59: 38153.1 | D59: 33442.4 | E59: 27489 | F59: 23836.55 | G59: 18485.8 | I59: 44886 | J59: 39344 | K59: 32340 | L59: 28043 | M59: 21748 | O59: 38153.1 | P59: 33442.4 | Q59: 27489 | R59: 23836.55 | S59: 18485.8
A60: 72 | C60: 41140.85 | D60: 36062.95 | E60: 29659.9 | F60: 25717.6 | G60: 19945.25 | I60: 48401 | J60: 42427 | K60: 34894 | L60: 30256 | M60: 23465 | O60: 41140.85 | P60: 36062.95 | Q60: 29659.9 | R60: 25717.6 | S60: 19945.25
A61: 73 | C61: 44257.8 | D61: 38793.15 | E61: 31928.55 | F61: 27684.5 | G61: 21470.15 | I61: 52068 | J61: 45639 | K61: 37563 | L61: 32570 | M61: 25259 | O61: 44257.8 | P61: 38793.15 | Q61: 31928.55 | R61: 27684.5 | S61: 21470.15
A62: 74 | C62: 47503.1 | D62: 41636.4 | E62: 34289.85 | F62: 29733 | G62: 23058.8 | I62: 55886 | J62: 48984 | K62: 40341 | L62: 34980 | M62: 27128 | O62: 47503.1 | P62: 41636.4 | Q62: 34289.85 | R62: 29733 | S62: 23058.8
A63: 75 | C63: 50875.9 | D63: 44593.55 | E63: 36746.35 | F63: 31863.1 | G63: 24710.35 | I63: 59854 | J63: 52463 | K63: 43231 | L63: 37486 | M63: 29071 | O63: 50875.9 | P63: 44593.55 | Q63: 36746.35 | R63: 31863.1 | S63: 24710.35
A64: 76 | C64: 50875.9 | D64: 44593.55 | E64: 36746.35 | F64: 31863.1 | G64: 24710.35 | I64: 59854 | J64: 52463 | K64: 43231 | L64: 37486 | M64: 29071 | O64: 50875.9 | P64: 44593.55 | Q64: 36746.35 | R64: 31863.1 | S64: 24710.35
A65: 77 | C65: 50875.9 | D65: 44593.55 | E65: 36746.35 | F65: 31863.1 | G65: 24710.35 | I65: 59854 | J65: 52463 | K65: 43231 | L65: 37486 | M65: 29071 | O65: 50875.9 | P65: 44593.55 | Q65: 36746.35 | R65: 31863.1 | S65: 24710.35
A66: 78 | C66: 50875.9 | D66: 44593.55 | E66: 36746.35 | F66: 31863.1 | G66: 24710.35 | I66: 59854 | J66: 52463 | K66: 43231 | L66: 37486 | M66: 29071 | O66: 50875.9 | P66: 44593.55 | Q66: 36746.35 | R66: 31863.1 | S66: 24710.35
A67: 79 | C67: 50875.9 | D67: 44593.55 | E67: 36746.35 | F67: 31863.1 | G67: 24710.35 | I67: 59854 | J67: 52463 | K67: 43231 | L67: 37486 | M67: 29071 | O67: 50875.9 | P67: 44593.55 | Q67: 36746.35 | R67: 31863.1 | S67: 24710.35
A68: 80 | C68: 50875.9 | D68: 44593.55 | E68: 36746.35 | F68: 31863.1 | G68: 24710.35 | I68: 59854 | J68: 52463 | K68: 43231 | L68: 37486 | M68: 29071 | O68: 50875.9 | P68: 44593.55 | Q68: 36746.35 | R68: 31863.1 | S68: 24710.35
A69: 81 | C69: 50875.9 | D69: 44593.55 | E69: 36746.35 | F69: 31863.1 | G69: 24710.35 | I69: 59854 | J69: 52463 | K69: 43231 | L69: 37486 | M69: 29071 | O69: 50875.9 | P69: 44593.55 | Q69: 36746.35 | R69: 31863.1 | S69: 24710.35
A70: 82 | C70: 50875.9 | D70: 44593.55 | E70: 36746.35 | F70: 31863.1 | G70: 24710.35 | I70: 59854 | J70: 52463 | K70: 43231 | L70: 37486 | M70: 29071 | O70: 50875.9 | P70: 44593.55 | Q70: 36746.35 | R70: 31863.1 | S70: 24710.35
A71: 83 | C71: =O71 -> 50875.9 | D71: =P71 -> 44593.55 | E71: =Q71 -> 36746.35 | F71: =R71 -> 31863.1 | G71: =S71 -> 24710.35 | I71: 59854 | J71: 52463 | K71: 43231 | L71: 37486 | M71: 29071 | O71: =(I71)*0.85 -> 50875.9 | P71: =(J71)*0.85 -> 44593.55 | Q71: =(K71)*0.85 -> 36746.35 | R71: =(L71)*0.85 -> 31863.1 | S71: =(M71)*0.85 -> 24710.35
A72: 84 | B72: o más | C72: 50875.9 | D72: 44593.55 | E72: 36746.35 | F72: 31863.1 | G72: 24710.35 | I72: 59854 | J72: 52463 | K72: 43231 | L72: 37486 | M72: 29071 | O72: 50875.9 | P72: 44593.55 | Q72: 36746.35 | R72: 31863.1 | S72: 24710.35
A73: 1 | B73: Hijo | C73: =O73 -> 2613.75 | D73: =P73 -> 2290.75 | E73: =Q73 -> 1949.9 | F73: =R73 -> 1691.5 | G73: =S73 -> 1311.55 | I73: 3075 | J73: 2695 | K73: 2294 | L73: 1990 | M73: 1543 | O73: =I73*0.85 -> 2613.75 | P73: =J73*0.85 -> 2290.75 | Q73: =K73*0.85 -> 1949.9 | R73: =L73*0.85 -> 1691.5 | S73: =M73*0.85 -> 1311.55
A74: 2 | B74: Hijos | C74: 4441.25 | D74: 3893.85 | E74: 3315 | F74: 2875.55 | G74: 2229.55 | I74: 5225 | J74: 4581 | K74: 3900 | L74: 3383 | M74: 2623 | O74: =I74*0.85 -> 4441.25 | P74: =J74*0.85 -> 3893.85 | Q74: =K74*0.85 -> 3315 | R74: =L74*0.85 -> 2875.55 | S74: =M74*0.85 -> 2229.55
A75: 3 | B75: Hijos o más | C75: 6271.3 | D75: 5496.1 | E75: 4679.25 | F75: 4057.9 | G75: 3147.55 | I75: 7378 | J75: 6466 | K75: 5505 | L75: 4774 | M75: 3703 | O75: 6271.3 | P75: 5496.1 | Q75: 4679.25 | R75: 4057.9 | S75: 3147.55
A77: BUPA GLOBAL ELITE - MENSUALES
A78: EDAD
C79: 1000 | D79: 2000 | E79: 3500
A80: 18 | C80: =C6*$K$2 -> 577.15 | D80: =D6*$K$2 -> 505.75 | E80: 427.6066667 | F80: 370.9626667 | G80: 287.6626667 | I80: =I6*$K$2 -> 679 | J80: =J6*$K$2 -> 595 | K80: 503.0666667 | L80: 436.4266667 | M80: 338.4266667 | O80: =I80*0.85 -> 577.15 | P80: =J80*0.85 -> 505.75 | Q80: 427.6066667 | R80: 370.9626667 | S80: 287.6626667
A81: 19 | C81: =C7*$K$2 -> 577.15 | D81: 505.75 | E81: 427.6066667 | F81: 370.9626667 | G81: 287.6626667 | I81: =I7*$K$2 -> 679 | J81: 595 | K81: 503.0666667 | L81: 436.4266667 | M81: 338.4266667 | O81: =I81*0.85 -> 577.15 | P81: =J81*0.85 -> 505.75 | Q81: =K81*0.85 -> 427.6066667 | R81: =L81*0.85 -> 370.9626667 | S81: =M81*0.85 -> 287.6626667
A82: 20 | C82: =C8*$K$2 -> 577.15 | D82: 505.75 | E82: 427.6066667 | F82: 370.9626667 | G82: 287.6626667 | I82: 679 | J82: 595 | K82: 503.0666667 | L82: 436.4266667 | M82: 338.4266667 | O82: 577.15 | P82: 505.75 | Q82: 427.6066667 | R82: 370.9626667 | S82: 287.6626667
A83: 21 | C83: =C9*$K$2 -> 577.15 | D83: 505.75 | E83: 427.6066667 | F83: 370.9626667 | G83: 287.6626667 | I83: 679 | J83: 595 | K83: 503.0666667 | L83: 436.4266667 | M83: 338.4266667 | O83: 577.15 | P83: 505.75 | Q83: 427.6066667 | R83: 370.9626667 | S83: 287.6626667
A84: 22 | C84: =C10*$K$2 -> 577.15 | D84: 505.75 | E84: 427.6066667 | F84: 370.9626667 | G84: 287.6626667 | I84: 679 | J84: 595 | K84: 503.0666667 | L84: 436.4266667 | M84: 338.4266667 | O84: 577.15 | P84: 505.75 | Q84: 427.6066667 | R84: 370.9626667 | S84: 287.6626667
A85: 23 | C85: =C11*$K$2 -> 577.15 | D85: 505.75 | E85: 427.6066667 | F85: 370.9626667 | G85: 287.6626667 | I85: 679 | J85: 595 | K85: 503.0666667 | L85: 436.4266667 | M85: 338.4266667 | O85: 577.15 | P85: 505.75 | Q85: 427.6066667 | R85: 370.9626667 | S85: 287.6626667
A86: 24 | C86: =C12*$K$2 -> 577.15 | D86: 505.75 | E86: 427.6066667 | F86: 370.9626667 | G86: 287.6626667 | I86: 679 | J86: 595 | K86: 503.0666667 | L86: 436.4266667 | M86: 338.4266667 | O86: 577.15 | P86: 505.75 | Q86: 427.6066667 | R86: 370.9626667 | S86: 287.6626667
A87: 25 | C87: =C13*$K$2 -> 616.5786667 | D87: 540.4186667 | E87: 454.1833333 | F87: 393.8106667 | G87: 305.5126667 | I87: 725.3866667 | J87: 635.7866667 | K87: 534.3333333 | L87: 463.3066667 | M87: 359.4266667 | O87: 616.5786667 | P87: 540.4186667 | Q87: 454.1833333 | R87: 393.8106667 | S87: 305.5126667
A88: 26 | C88: =C14*$K$2 -> 616.5786667 | D88: 540.4186667 | E88: 454.1833333 | F88: 393.8106667 | G88: 305.5126667 | I88: 725.3866667 | J88: 635.7866667 | K88: 534.3333333 | L88: 463.3066667 | M88: 359.4266667 | O88: 616.5786667 | P88: 540.4186667 | Q88: 454.1833333 | R88: 393.8106667 | S88: 305.5126667
A89: 27 | C89: =C15*$K$2 -> 616.5786667 | D89: 540.4186667 | E89: 454.1833333 | F89: 393.8106667 | G89: 305.5126667 | I89: 725.3866667 | J89: 635.7866667 | K89: 534.3333333 | L89: 463.3066667 | M89: 359.4266667 | O89: 616.5786667 | P89: 540.4186667 | Q89: 454.1833333 | R89: 393.8106667 | S89: 305.5126667
A90: 28 | C90: =C16*$K$2 -> 616.5786667 | D90: 540.4186667 | E90: 454.1833333 | F90: 393.8106667 | G90: 305.5126667 | I90: 725.3866667 | J90: 635.7866667 | K90: 534.3333333 | L90: 463.3066667 | M90: 359.4266667 | O90: 616.5786667 | P90: 540.4186667 | Q90: 454.1833333 | R90: 393.8106667 | S90: 305.5126667
A91: 29 | C91: =C17*$K$2 -> 616.5786667 | D91: 540.4186667 | E91: 454.1833333 | F91: 393.8106667 | G91: 305.5126667 | I91: 725.3866667 | J91: 635.7866667 | K91: 534.3333333 | L91: 463.3066667 | M91: 359.4266667 | O91: 616.5786667 | P91: 540.4186667 | Q91: 454.1833333 | R91: 393.8106667 | S91: 305.5126667
A92: 30 | C92: =C18*$K$2 -> 685.678 | D92: 601.0293333 | E92: 501.3073333 | F92: 434.588 | G92: 337.0873333 | I92: 806.68 | J92: 707.0933333 | K92: 589.7733333 | L92: 511.28 | M92: 396.5733333 | O92: 685.678 | P92: 601.0293333 | Q92: 501.3073333 | R92: 434.588 | S92: 337.0873333
A93: 31 | C93: =C19*$K$2 -> 685.678 | D93: 601.0293333 | E93: 501.3073333 | F93: 434.588 | G93: 337.0873333 | I93: 806.68 | J93: 707.0933333 | K93: 589.7733333 | L93: 511.28 | M93: 396.5733333 | O93: 685.678 | P93: 601.0293333 | Q93: 501.3073333 | R93: 434.588 | S93: 337.0873333
A94: 32 | C94: =C20*$K$2 -> 685.678 | D94: 601.0293333 | E94: 501.3073333 | F94: 434.588 | G94: 337.0873333 | I94: 806.68 | J94: 707.0933333 | K94: 589.7733333 | L94: 511.28 | M94: 396.5733333 | O94: 685.678 | P94: 601.0293333 | Q94: 501.3073333 | R94: 434.588 | S94: 337.0873333
A95: 33 | C95: =C21*$K$2 -> 685.678 | D95: 601.0293333 | E95: 501.3073333 | F95: 434.588 | G95: 337.0873333 | I95: 806.68 | J95: 707.0933333 | K95: 589.7733333 | L95: 511.28 | M95: 396.5733333 | O95: 685.678 | P95: 601.0293333 | Q95: 501.3073333 | R95: 434.588 | S95: 337.0873333
A96: 34 | C96: =C22*$K$2 -> 685.678 | D96: 601.0293333 | E96: 501.3073333 | F96: 434.588 | G96: 337.0873333 | I96: 806.68 | J96: 707.0933333 | K96: 589.7733333 | L96: 511.28 | M96: 396.5733333 | O96: 685.678 | P96: 601.0293333 | Q96: 501.3073333 | R96: 434.588 | S96: 337.0873333
A97: 35 | C97: =C23*$K$2 -> 765.4873333 | D97: 670.7633333 | E97: 556.2853333 | F97: 482.426 | G97: 374.136 | I97: 900.5733333 | J97: 789.1333333 | K97: 654.4533333 | L97: 567.56 | M97: 440.16 | O97: 765.4873333 | P97: 670.7633333 | Q97: 556.2853333 | R97: 482.426 | S97: 374.136
A98: 36 | C98: =C24*$K$2 -> 765.4873333 | D98: 670.7633333 | E98: 556.2853333 | F98: 482.426 | G98: 374.136 | I98: 900.5733333 | J98: 789.1333333 | K98: 654.4533333 | L98: 567.56 | M98: 440.16 | O98: 765.4873333 | P98: 670.7633333 | Q98: 556.2853333 | R98: 482.426 | S98: 374.136
A99: 37 | C99: =C25*$K$2 -> 765.4873333 | D99: 670.7633333 | E99: 556.2853333 | F99: 482.426 | G99: 374.136 | I99: 900.5733333 | J99: 789.1333333 | K99: 654.4533333 | L99: 567.56 | M99: 440.16 | O99: 765.4873333 | P99: 670.7633333 | Q99: 556.2853333 | R99: 482.426 | S99: 374.136
A100: 38 | C100: =C26*$K$2 -> 765.4873333 | D100: 670.7633333 | E100: 556.2853333 | F100: 482.426 | G100: 374.136 | I100: 900.5733333 | J100: 789.1333333 | K100: 654.4533333 | L100: 567.56 | M100: 440.16 | O100: 765.4873333 | P100: 670.7633333 | Q100: 556.2853333 | R100: 482.426 | S100: 374.136
A101: 39 | C101: =C27*$K$2 -> 765.4873333 | D101: 670.7633333 | E101: 556.2853333 | F101: 482.426 | G101: 374.136 | I101: 900.5733333 | J101: 789.1333333 | K101: 654.4533333 | L101: 567.56 | M101: 440.16 | O101: 765.4873333 | P101: 670.7633333 | Q101: 556.2853333 | R101: 482.426 | S101: 374.136
A102: 40 | C102: =C28*$K$2 -> 857.3553333 | D102: 751.366 | E102: 620.3073333 | F102: 537.88 | G102: 417.2933333 | I102: 1008.653333 | J102: 883.96 | K102: 729.7733333 | L102: 632.8 | M102: 490.9333333 | O102: 857.3553333 | P102: 751.366 | Q102: 620.3073333 | R102: 537.88 | S102: 417.2933333
A103: 41 | C103: =C29*$K$2 -> 857.3553333 | D103: 751.366 | E103: 620.3073333 | F103: 537.88 | G103: 417.2933333 | I103: 1008.653333 | J103: 883.96 | K103: 729.7733333 | L103: 632.8 | M103: 490.9333333 | O103: 857.3553333 | P103: 751.366 | Q103: 620.3073333 | R103: 537.88 | S103: 417.2933333
A104: 42 | C104: =C30*$K$2 -> 857.3553333 | D104: 751.366 | E104: 620.3073333 | F104: 537.88 | G104: 417.2933333 | I104: 1008.653333 | J104: 883.96 | K104: 729.7733333 | L104: 632.8 | M104: 490.9333333 | O104: 857.3553333 | P104: 751.366 | Q104: 620.3073333 | R104: 537.88 | S104: 417.2933333
A105: 43 | C105: =C31*$K$2 -> 857.3553333 | D105: 751.366 | E105: 620.3073333 | F105: 537.88 | G105: 417.2933333 | I105: 1008.653333 | J105: 883.96 | K105: 729.7733333 | L105: 632.8 | M105: 490.9333333 | O105: 857.3553333 | P105: 751.366 | Q105: 620.3073333 | R105: 537.88 | S105: 417.2933333
A106: 44 | C106: =C32*$K$2 -> 857.3553333 | D106: 751.366 | E106: 620.3073333 | F106: 537.88 | G106: 417.2933333 | I106: 1008.653333 | J106: 883.96 | K106: 729.7733333 | L106: 632.8 | M106: 490.9333333 | O106: 857.3553333 | P106: 751.366 | Q106: 620.3073333 | R106: 537.88 | S106: 417.2933333
A107: 45 | C107: =C33*$K$2 -> 959.4573333 | D107: 840.9333333 | E107: 692.104 | F107: 600.0773333 | G107: 465.3693333 | I107: 1128.773333 | J107: 989.3333333 | K107: 814.24 | L107: 705.9733333 | M107: 547.4933333 | O107: 959.4573333 | P107: 840.9333333 | Q107: 692.104 | R107: 600.0773333 | S107: 465.3693333
A108: 46 | C108: =C34*$K$2 -> 959.4573333 | D108: 840.9333333 | E108: 692.104 | F108: 600.0773333 | G108: 465.3693333 | I108: 1128.773333 | J108: 989.3333333 | K108: 814.24 | L108: 705.9733333 | M108: 547.4933333 | O108: 959.4573333 | P108: 840.9333333 | Q108: 692.104 | R108: 600.0773333 | S108: 465.3693333
A109: 47 | C109: =C35*$K$2 -> 959.4573333 | D109: 840.9333333 | E109: 692.104 | F109: 600.0773333 | G109: 465.3693333 | I109: 1128.773333 | J109: 989.3333333 | K109: 814.24 | L109: 705.9733333 | M109: 547.4933333 | O109: 959.4573333 | P109: 840.9333333 | Q109: 692.104 | R109: 600.0773333 | S109: 465.3693333
A110: 48 | C110: =C36*$K$2 -> 959.4573333 | D110: 840.9333333 | E110: 692.104 | F110: 600.0773333 | G110: 465.3693333 | I110: 1128.773333 | J110: 989.3333333 | K110: 814.24 | L110: 705.9733333 | M110: 547.4933333 | O110: 959.4573333 | P110: 840.9333333 | Q110: 692.104 | R110: 600.0773333 | S110: 465.3693333
A111: 49 | C111: =C37*$K$2 -> 959.4573333 | D111: 840.9333333 | E111: 692.104 | F111: 600.0773333 | G111: 465.3693333 | I111: 1128.773333 | J111: 989.3333333 | K111: 814.24 | L111: 705.9733333 | M111: 547.4933333 | O111: 959.4573333 | P111: 840.9333333 | Q111: 692.104 | R111: 600.0773333 | S111: 465.3693333
A112: 50 | C112: =C38*$K$2 -> 1074.252667 | D112: 941.6866667 | E112: 773.1033333 | F112: 670.446 | G112: 519.9506667 | I112: 1263.826667 | J112: 1107.866667 | K112: 909.5333333 | L112: 788.76 | M112: 611.7066667 | O112: 1074.252667 | P112: 941.6866667 | Q112: 773.1033333 | R112: 670.446 | S112: 519.9506667
A113: 51 | C113: =C39*$K$2 -> 1074.252667 | D113: 941.6866667 | E113: 773.1033333 | F113: 670.446 | G113: 519.9506667 | I113: 1263.826667 | J113: 1107.866667 | K113: 909.5333333 | L113: 788.76 | M113: 611.7066667 | O113: 1074.252667 | P113: 941.6866667 | Q113: 773.1033333 | R113: 670.446 | S113: 519.9506667
A114: 52 | C114: =C40*$K$2 -> 1074.252667 | D114: 941.6866667 | E114: 773.1033333 | F114: 670.446 | G114: 519.9506667 | I114: 1263.826667 | J114: 1107.866667 | K114: 909.5333333 | L114: 788.76 | M114: 611.7066667 | O114: 1074.252667 | P114: 941.6866667 | Q114: 773.1033333 | R114: 670.446 | S114: 519.9506667
A115: 53 | C115: =C41*$K$2 -> 1074.252667 | D115: 941.6866667 | E115: 773.1033333 | F115: 670.446 | G115: 519.9506667 | I115: 1263.826667 | J115: 1107.866667 | K115: 909.5333333 | L115: 788.76 | M115: 611.7066667 | O115: 1074.252667 | P115: 941.6866667 | Q115: 773.1033333 | R115: 670.446 | S115: 519.9506667
A116: 54 | C116: =C42*$K$2 -> 1074.252667 | D116: 941.6866667 | E116: 773.1033333 | F116: 670.446 | G116: 519.9506667 | I116: 1263.826667 | J116: 1107.866667 | K116: 909.5333333 | L116: 788.76 | M116: 611.7066667 | O116: 1074.252667 | P116: 941.6866667 | Q116: 773.1033333 | R116: 670.446 | S116: 519.9506667
A117: 55 | C117: =C43*$K$2 -> 1200.948 | D117: 1052.753333 | E117: 863.1466667 | F117: 748.51 | G117: 580.5613333 | I117: 1412.88 | J117: 1238.533333 | K117: 1015.466667 | L117: 880.6 | M117: 683.0133333 | O117: 1200.948 | P117: 1052.753333 | Q117: 863.1466667 | R117: 748.51 | S117: 580.5613333
A118: 56 | C118: =C44*$K$2 -> 1200.948 | D118: 1052.753333 | E118: 863.1466667 | F118: 748.51 | G118: 580.5613333 | I118: 1412.88 | J118: 1238.533333 | K118: 1015.466667 | L118: 880.6 | M118: 683.0133333 | O118: 1200.948 | P118: 1052.753333 | Q118: 863.1466667 | R118: 748.51 | S118: 580.5613333
A119: 57 | C119: =C45*$K$2 -> 1200.948 | D119: 1052.753333 | E119: 863.1466667 | F119: 748.51 | G119: 580.5613333 | I119: 1412.88 | J119: 1238.533333 | K119: 1015.466667 | L119: 880.6 | M119: 683.0133333 | O119: 1200.948 | P119: 1052.753333 | Q119: 863.1466667 | R119: 748.51 | S119: 580.5613333
A120: 58 | C120: =C46*$K$2 -> 1200.948 | D120: 1052.753333 | E120: 863.1466667 | F120: 748.51 | G120: 580.5613333 | I120: 1412.88 | J120: 1238.533333 | K120: 1015.466667 | L120: 880.6 | M120: 683.0133333 | O120: 1200.948 | P120: 1052.753333 | Q120: 863.1466667 | R120: 748.51 | S120: 580.5613333
A121: 59 | C121: =C47*$K$2 -> 1200.948 | D121: 1052.753333 | E121: 863.1466667 | F121: 748.51 | G121: 580.5613333 | I121: 1412.88 | J121: 1238.533333 | K121: 1015.466667 | L121: 880.6 | M121: 683.0133333 | O121: 1200.948 | P121: 1052.753333 | Q121: 863.1466667 | R121: 748.51 | S121: 580.5613333
A122: 60 | C122: =C48*$K$2 -> 1285.358667 | D122: 1126.692 | E122: 923.0433333 | F122: 800.394 | G122: 620.704 | I122: 1512.186667 | J122: 1325.52 | K122: 1085.933333 | L122: 941.64 | M122: 730.24 | O122: 1285.358667 | P122: 1126.692 | Q122: 923.0433333 | R122: 800.394 | S122: 620.704
A123: 61 | C123: =C49*$K$2 -> 1432.284 | D123: 1255.529333 | E123: 1028.080667 | F123: 891.6273333 | G123: 691.39 | I123: 1685.04 | J123: 1477.093333 | K123: 1209.506667 | L123: 1048.973333 | M123: 813.4 | O123: 1432.284 | P123: 1255.529333 | Q123: 1028.080667 | R123: 891.6273333 | S123: 691.39
A124: 62 | C124: =C50*$K$2 -> 1591.268 | D124: 1394.759333 | E124: 1141.924 | F124: 990.08 | G124: 767.788 | I124: 1872.08 | J124: 1640.893333 | K124: 1343.44 | L124: 1164.8 | M124: 903.28 | O124: 1591.268 | P124: 1394.759333 | Q124: 1141.924 | R124: 990.08 | S124: 767.788
A125: 63 | C125: =C51*$K$2 -> 1761.993333 | D125: 1544.62 | E125: 1264.573333 | F125: 1096.466 | G125: 850.374 | I125: 2072.933333 | J125: 1817.2 | K125: 1487.733333 | L125: 1289.96 | M125: 1000.44 | O125: 1761.993333 | P125: 1544.62 | Q125: 1264.573333 | R125: 1096.466 | S125: 850.374
A126: 64 | C126: =C52*$K$2 -> 1945.015333 | D126: 1704.714667 | E126: 1395.949333 | F126: 1210.468 | G126: 938.672 | I126: 2288.253333 | J126: 2005.546667 | K126: 1642.293333 | L126: 1424.08 | M126: 1104.32 | O126: 1945.015333 | P126: 1704.714667 | Q126: 1395.949333 | R126: 1210.468 | S126: 938.672
A127: 65 | C127: =C53*$K$2 -> 2139.778667 | D127: 1875.678 | E127: 1536.369333 | F127: 1332.244667 | G127: 1033.237333 | I127: 2517.386667 | J127: 2206.68 | K127: 1807.493333 | L127: 1567.346667 | M127: 1215.573333 | O127: 2139.778667 | P127: 1875.678 | Q127: 1536.369333 | R127: 1332.244667 | S127: 1033.237333
A128: 66 | C128: =C54*$K$2 -> 2346.759333 | D128: 2057.034 | E128: 1685.595333 | F128: 1461.637333 | G128: 1133.673333 | I128: 2760.893333 | J128: 2420.04 | K128: 1983.053333 | L128: 1719.573333 | M128: =M54*$K$2 -> 1333.733333 | O128: 2346.759333 | P128: 2057.034 | Q128: 1685.595333 | R128: 1461.637333 | S128: 1133.673333
A129: 67 | C129: =C55*$K$2 -> 2565.64 | D129: 2248.782667 | E129: 1843.865333 | F129: 1598.804667 | G129: 1239.98 | I129: 3018.4 | J129: 2645.626667 | K129: 2169.253333 | L129: 1880.946667 | M129: 1458.8 | O129: 2565.64 | P129: 2248.782667 | Q129: 1843.865333 | R129: 1598.804667 | S129: 1239.98
A130: 68 | C130: =C56*$K$2 -> 2796.420667 | D130: 2451.162 | E130: 2010.941333 | F130: 1743.746667 | G130: 1352.395333 | I130: 3289.906667 | J130: 2883.72 | K130: 2365.813333 | L130: 2051.466667 | M130: 1591.053333 | O130: 2796.420667 | P130: 2451.162 | Q130: 2010.941333 | R130: 1743.746667 | S130: 1352.395333
A131: 69 | C131: =C57*$K$2 -> 3039.418667 | D131: 2664.013333 | E131: 2186.982 | F131: 1896.463333 | G131: 1470.760667 | I131: 3575.786667 | J131: 3134.133333 | K131: 2572.92 | L131: 2231.133333 | M131: 1730.306667 | O131: 3039.418667 | P131: 2664.013333 | Q131: 2186.982 | R131: 1896.463333 | S131: 1470.760667
A132: 70 | C132: =C58*$K$2 -> 3294.158 | D132: 2887.416 | E132: 2371.749333 | F132: 2056.716667 | G132: 1594.996667 | I132: 3875.48 | J132: 3396.96 | K132: 2790.293333 | L132: 2419.666667 | M132: 1876.466667 | O132: 3294.158 | P132: 2887.416 | Q132: 2371.749333 | R132: 2056.716667 | S132: 1594.996667
A133: 71 | C133: =C59*$K$2 -> 3560.956 | D133: 3121.290667 | E133: 2565.64 | F133: 2224.744667 | G133: 1725.341333 | I133: 4189.36 | J133: 3672.106667 | K133: 3018.4 | L133: 2617.346667 | M133: 2029.813333 | O133: 3560.956 | P133: 3121.290667 | Q133: 2565.64 | R133: 2224.744667 | S133: 1725.341333
A134: 72 | C134: =C60*$K$2 -> 3839.812667 | D134: 3365.875333 | E134: 2768.257333 | F134: 2400.309333 | G134: 1861.556667 | I134: 4517.426667 | J134: 3959.853333 | K134: 3256.773333 | L134: 2823.893333 | M134: 2190.066667 | O134: 3839.812667 | P134: 3365.875333 | Q134: 2768.257333 | R134: 2400.309333 | S134: 1861.556667
A135: 73 | C135: =C61*$K$2 -> 4130.728 | D135: 3620.694 | E135: 2979.998 | F135: 2583.886667 | G135: 2003.880667 | I135: 4859.68 | J135: 4259.64 | K135: 3505.88 | L135: 3039.866667 | M135: 2357.506667 | O135: 4130.728 | P135: 3620.694 | Q135: 2979.998 | R135: 2583.886667 | S135: 2003.880667
A136: 74 | C136: =C62*$K$2 -> 4433.622667 | D136: 3886.064 | E136: 3200.386 | F136: 2775.08 | G136: 2152.154667 | I136: 5216.026667 | J136: 4571.84 | K136: 3765.16 | L136: 3264.8 | M136: 2531.946667 | O136: 4433.622667 | P136: 3886.064 | Q136: 3200.386 | R136: 2775.08 | S136: 2152.154667
A137: 75 | C137: =C63*$K$2 -> 4748.417333 | D137: 4162.064667 | E137: 3429.659333 | F137: 2973.889333 | G137: 2306.299333 | I137: 5586.373333 | J137: 4896.546667 | K137: 4034.893333 | L137: 3498.693333 | M137: 2713.293333 | O137: 4748.417333 | P137: 4162.064667 | Q137: 3429.659333 | R137: 2973.889333 | S137: 2306.299333
A138: 76 | C138: =C64*$K$2 -> 4748.417333 | D138: 4162.064667 | E138: 3429.659333 | F138: 2973.889333 | G138: 2306.299333 | I138: 5586.373333 | J138: 4896.546667 | K138: 4034.893333 | L138: 3498.693333 | M138: 2713.293333 | O138: 4748.417333 | P138: 4162.064667 | Q138: 3429.659333 | R138: 2973.889333 | S138: 2306.299333
A139: 77 | C139: =C65*$K$2 -> 4748.417333 | D139: 4162.064667 | E139: 3429.659333 | F139: 2973.889333 | G139: 2306.299333 | I139: 5586.373333 | J139: 4896.546667 | K139: 4034.893333 | L139: 3498.693333 | M139: 2713.293333 | O139: 4748.417333 | P139: 4162.064667 | Q139: 3429.659333 | R139: 2973.889333 | S139: 2306.299333
A140: 78 | C140: =C66*$K$2 -> 4748.417333 | D140: 4162.064667 | E140: 3429.659333 | F140: 2973.889333 | G140: 2306.299333 | I140: 5586.373333 | J140: 4896.546667 | K140: 4034.893333 | L140: 3498.693333 | M140: 2713.293333 | O140: 4748.417333 | P140: 4162.064667 | Q140: 3429.659333 | R140: 2973.889333 | S140: 2306.299333
A141: 79 | C141: =C67*$K$2 -> 4748.417333 | D141: 4162.064667 | E141: 3429.659333 | F141: 2973.889333 | G141: 2306.299333 | I141: 5586.373333 | J141: 4896.546667 | K141: 4034.893333 | L141: 3498.693333 | M141: 2713.293333 | O141: 4748.417333 | P141: 4162.064667 | Q141: 3429.659333 | R141: 2973.889333 | S141: 2306.299333
A142: 80 | C142: =C68*$K$2 -> 4748.417333 | D142: 4162.064667 | E142: 3429.659333 | F142: 2973.889333 | G142: 2306.299333 | I142: 5586.373333 | J142: 4896.546667 | K142: 4034.893333 | L142: 3498.693333 | M142: 2713.293333 | O142: 4748.417333 | P142: 4162.064667 | Q142: 3429.659333 | R142: 2973.889333 | S142: 2306.299333
A143: 81 | C143: =C69*$K$2 -> 4748.417333 | D143: 4162.064667 | E143: 3429.659333 | F143: 2973.889333 | G143: 2306.299333 | I143: 5586.373333 | J143: 4896.546667 | K143: 4034.893333 | L143: 3498.693333 | M143: 2713.293333 | O143: 4748.417333 | P143: 4162.064667 | Q143: 3429.659333 | R143: 2973.889333 | S143: 2306.299333
A144: 82 | C144: =C70*$K$2 -> 4748.417333 | D144: 4162.064667 | E144: 3429.659333 | F144: 2973.889333 | G144: 2306.299333 | I144: 5586.373333 | J144: =J70*$K$2 -> 4896.546667 | K144: 4034.893333 | L144: 3498.693333 | M144: 2713.293333 | O144: 4748.417333 | P144: 4162.064667 | Q144: 3429.659333 | R144: 2973.889333 | S144: 2306.299333
A145: 83 | C145: =C71*$K$2 -> 4748.417333 | D145: 4162.064667 | E145: 3429.659333 | F145: 2973.889333 | G145: 2306.299333 | I145: =I71*$K$2 -> 5586.373333 | J145: 4896.546667 | K145: 4034.893333 | L145: 3498.693333 | M145: 2713.293333 | O145: =I145*0.85 -> 4748.417333 | P145: =J145*0.85 -> 4162.064667 | Q145: =K145*0.85 -> 3429.659333 | R145: =L145*0.85 -> 2973.889333 | S145: =M145*0.85 -> 2306.299333
A146: 84 | B146: o más | C146: =C72*$K$2 -> 4748.417333 | D146: 4162.064667 | E146: 3429.659333 | F146: 2973.889333 | G146: 2306.299333 | I146: 5586.373333 | J146: 4896.546667 | K146: 4034.893333 | L146: 3498.693333 | M146: 2713.293333 | O146: =I146*0.85 -> 4748.417333 | P146: =J146*0.85 -> 4162.064667 | Q146: =K146*0.85 -> 3429.659333 | R146: =L146*0.85 -> 2973.889333 | S146: =M146*0.85 -> 2306.299333
A147: 1 | B147: Hijo | C147: =C73*$K$2 -> 243.95 | D147: 213.8033333 | E147: 181.9906667 | F147: 157.8733333 | G147: 122.4113333 | I147: 287 | J147: 251.5333333 | K147: 214.1066667 | L147: 185.7333333 | M147: 144.0133333 | O147: =I147*0.85 -> 243.95 | P147: 213.8033333 | Q147: 181.9906667 | R147: 157.8733333 | S147: 122.4113333
A148: 2 | B148: Hijos | C148: =C74*$K$2 -> 414.5166667 | D148: 363.426 | E148: 309.4 | F148: 268.3846667 | G148: 208.0913333 | I148: 487.6666667 | J148: 427.56 | K148: 364 | L148: 315.7466667 | M148: 244.8133333 | O148: =I148*0.85 -> 414.5166667 | P148: =J148*0.85 -> 363.426 | Q148: =K148*0.85 -> 309.4 | R148: =L148*0.85 -> 268.3846667 | S148: =M148*0.85 -> 208.0913333
A149: 3 | B149: Hijos o más | C149: =C75*$K$2 -> 585.3213333 | D149: 512.9693333 | E149: 436.73 | F149: 378.7373333 | G149: 293.7713333 | I149: 688.6133333 | J149: 603.4933333 | K149: 513.8 | L149: 445.5733333 | M149: 345.6133333 | O149: 585.3213333 | P149: 512.9693333 | Q149: 436.73 | R149: 378.7373333 | S149: 293.7713333
A151: BUPA GLOBAL PREMIER
A152: TARIFAS ANUALES
A153: EDAD
C154: 250 | D154: 2000 | E154: 5000 | F154: 10000
A155: 18 | C155: =O155 -> 4063.85 | D155: =P155 -> 3686.45 | E155: 2822.85 | F155: 2099.5 | I155: 4781 | J155: 4337 | K155: 3321 | L155: 2470 | O155: =I155*0.85 -> 4063.85 | P155: =J155*0.85 -> 3686.45 | Q155: 2822.85 | R155: 2099.5
A156: 19 | C156: =O156 -> 4063.85 | D156: =P156 -> 3686.45 | E156: =Q156 -> 2822.85 | F156: =R156 -> 2099.5 | I156: 4781 | J156: 4337 | K156: 3321 | L156: 2470 | O156: =I156*0.85 -> 4063.85 | P156: =J156*0.85 -> 3686.45 | Q156: =K156*0.85 -> 2822.85 | R156: =L156*0.85 -> 2099.5
A157: 20 | C157: 4063.85 | D157: 3686.45 | E157: 2822.85 | F157: 2099.5 | I157: 4781 | J157: 4337 | K157: 3321 | L157: 2470 | O157: 4063.85 | P157: 3686.45 | Q157: 2822.85 | R157: 2099.5
A158: 21 | C158: 4063.85 | D158: 3686.45 | E158: 2822.85 | F158: 2099.5 | I158: 4781 | J158: 4337 | K158: 3321 | L158: 2470 | O158: 4063.85 | P158: 3686.45 | Q158: 2822.85 | R158: 2099.5
A159: 22 | C159: 4063.85 | D159: 3686.45 | E159: 2822.85 | F159: 2099.5 | I159: 4781 | J159: 4337 | K159: 3321 | L159: 2470 | O159: 4063.85 | P159: 3686.45 | Q159: 2822.85 | R159: 2099.5
A160: 23 | C160: 4063.85 | D160: 3686.45 | E160: 2822.85 | F160: 2099.5 | I160: 4781 | J160: 4337 | K160: 3321 | L160: 2470 | O160: 4063.85 | P160: 3686.45 | Q160: 2822.85 | R160: 2099.5
A161: 24 | C161: 4063.85 | D161: 3686.45 | E161: 2822.85 | F161: 2099.5 | I161: 4781 | J161: 4337 | K161: 3321 | L161: 2470 | O161: 4063.85 | P161: 3686.45 | Q161: 2822.85 | R161: 2099.5
A162: 25 | C162: 4343.5 | D162: 3939.75 | E162: 2984.35 | F162: 2220.2 | I162: 5110 | J162: 4635 | K162: 3511 | L162: 2612 | O162: 4343.5 | P162: 3939.75 | Q162: 2984.35 | R162: 2220.2
A163: 26 | C163: 4343.5 | D163: 3939.75 | E163: 2984.35 | F163: 2220.2 | I163: 5110 | J163: 4635 | K163: 3511 | L163: 2612 | O163: 4343.5 | P163: 3939.75 | Q163: 2984.35 | R163: 2220.2
A164: 27 | C164: 4343.5 | D164: 3939.75 | E164: 2984.35 | F164: 2220.2 | I164: 5110 | J164: 4635 | K164: 3511 | L164: 2612 | O164: 4343.5 | P164: 3939.75 | Q164: 2984.35 | R164: 2220.2
A165: 28 | C165: 4343.5 | D165: 3939.75 | E165: 2984.35 | F165: 2220.2 | I165: 5110 | J165: 4635 | K165: 3511 | L165: 2612 | O165: 4343.5 | P165: 3939.75 | Q165: 2984.35 | R165: 2220.2
A166: 29 | C166: 4343.5 | D166: 3939.75 | E166: 2984.35 | F166: 2220.2 | I166: 5110 | J166: 4635 | K166: 3511 | L166: 2612 | O166: 4343.5 | P166: 3939.75 | Q166: 2984.35 | R166: 2220.2
A167: 30 | C167: 4829.7 | D167: 4383.45 | E167: 3276.75 | F167: 2436.95 | I167: 5682 | J167: 5157 | K167: 3855 | L167: 2867 | O167: 4829.7 | P167: 4383.45 | Q167: 3276.75 | R167: 2436.95
A168: 31 | C168: 4829.7 | D168: 4383.45 | E168: 3276.75 | F168: 2436.95 | I168: 5682 | J168: 5157 | K168: 3855 | L168: 2867 | O168: 4829.7 | P168: 4383.45 | Q168: 3276.75 | R168: 2436.95
A169: 32 | C169: 4829.7 | D169: 4383.45 | E169: 3276.75 | F169: 2436.95 | I169: 5682 | J169: 5157 | K169: 3855 | L169: 2867 | O169: 4829.7 | P169: 4383.45 | Q169: 3276.75 | R169: 2436.95
A170: 33 | C170: 4829.7 | D170: 4383.45 | E170: 3276.75 | F170: 2436.95 | I170: 5682 | J170: 5157 | K170: 3855 | L170: 2867 | O170: 4829.7 | P170: 4383.45 | Q170: 3276.75 | R170: 2436.95
A171: 34 | C171: 4829.7 | D171: 4383.45 | E171: 3276.75 | F171: 2436.95 | I171: 5682 | J171: 5157 | K171: 3855 | L171: 2867 | O171: 4829.7 | P171: 4383.45 | Q171: 3276.75 | R171: 2436.95
A172: 35 | C172: 5389.85 | D172: 4891.75 | E172: 3621.85 | F172: 2693.65 | I172: 6341 | J172: 5755 | K172: 4261 | L172: 3169 | O172: 5389.85 | P172: 4891.75 | Q172: 3621.85 | R172: 2693.65
A173: 36 | C173: 5389.85 | D173: 4891.75 | E173: 3621.85 | F173: 2693.65 | I173: 6341 | J173: 5755 | K173: 4261 | L173: 3169 | O173: 5389.85 | P173: 4891.75 | Q173: 3621.85 | R173: 2693.65
A174: 37 | C174: 5389.85 | D174: 4891.75 | E174: 3621.85 | F174: 2693.65 | I174: 6341 | J174: 5755 | K174: 4261 | L174: 3169 | O174: 5389.85 | P174: 4891.75 | Q174: 3621.85 | R174: 2693.65
A175: 38 | C175: 5389.85 | D175: 4891.75 | E175: 3621.85 | F175: 2693.65 | I175: 6341 | J175: 5755 | K175: 4261 | L175: 3169 | O175: 5389.85 | P175: 4891.75 | Q175: 3621.85 | R175: 2693.65
A176: 39 | C176: 5389.85 | D176: 4891.75 | E176: 3621.85 | F176: 2693.65 | I176: 6341 | J176: 5755 | K176: 4261 | L176: 3169 | O176: 5389.85 | P176: 4891.75 | Q176: 3621.85 | R176: 2693.65
A177: 40 | C177: 6036.7 | D177: 5479.1 | E177: 4024.75 | F177: 2994.55 | I177: 7102 | J177: 6446 | K177: 4735 | L177: 3523 | O177: 6036.7 | P177: 5479.1 | Q177: 4024.75 | R177: 2994.55
A178: 41 | C178: 6036.7 | D178: 5479.1 | E178: 4024.75 | F178: 2994.55 | I178: 7102 | J178: 6446 | K178: 4735 | L178: 3523 | O178: 6036.7 | P178: 5479.1 | Q178: 4024.75 | R178: 2994.55
A179: 42 | C179: 6036.7 | D179: 5479.1 | E179: 4024.75 | F179: 2994.55 | I179: 7102 | J179: 6446 | K179: 4735 | L179: 3523 | O179: 6036.7 | P179: 5479.1 | Q179: 4024.75 | R179: 2994.55
A180: 43 | C180: 6036.7 | D180: 5479.1 | E180: 4024.75 | F180: 2994.55 | I180: 7102 | J180: 6446 | K180: 4735 | L180: 3523 | O180: 6036.7 | P180: 5479.1 | Q180: 4024.75 | R180: 2994.55
A181: 44 | C181: 6036.7 | D181: 5479.1 | E181: 4024.75 | F181: 2994.55 | I181: 7102 | J181: 6446 | K181: 4735 | L181: 3523 | O181: 6036.7 | P181: 5479.1 | Q181: 4024.75 | R181: 2994.55
A182: 45 | C182: 6755.8 | D182: 6131.9 | E182: 4479.5 | F182: 3332 | I182: 7948 | J182: 7214 | K182: 5270 | L182: 3920 | O182: 6755.8 | P182: 6131.9 | Q182: 4479.5 | R182: 3332
A183: 46 | C183: 6755.8 | D183: 6131.9 | E183: 4479.5 | F183: 3332 | I183: 7948 | J183: 7214 | K183: 5270 | L183: 3920 | O183: 6755.8 | P183: 6131.9 | Q183: 4479.5 | R183: 3332
A184: 47 | C184: 6755.8 | D184: 6131.9 | E184: 4479.5 | F184: 3332 | I184: 7948 | J184: 7214 | K184: 5270 | L184: 3920 | O184: 6755.8 | P184: 6131.9 | Q184: 4479.5 | R184: 3332
A185: 48 | C185: 6755.8 | D185: 6131.9 | E185: 4479.5 | F185: 3332 | I185: 7948 | J185: 7214 | K185: 5270 | L185: 3920 | O185: 6755.8 | P185: 6131.9 | Q185: 4479.5 | R185: 3332
A186: 49 | C186: 6755.8 | D186: 6131.9 | E186: 4479.5 | F186: 3332 | I186: 7948 | J186: 7214 | K186: 5270 | L186: 3920 | O186: 6755.8 | P186: 6131.9 | Q186: 4479.5 | R186: 3332
A187: 50 | C187: 7566.7 | D187: 6866.3 | E187: 4997.15 | F187: 3717.9 | I187: 8902 | J187: 8078 | K187: 5879 | L187: 4374 | O187: 7566.7 | P187: 6866.3 | Q187: 4997.15 | R187: 3717.9
A188: 51 | C188: 7566.7 | D188: 6866.3 | E188: 4997.15 | F188: 3717.9 | I188: 8902 | J188: 8078 | K188: 5879 | L188: 4374 | O188: 7566.7 | P188: 6866.3 | Q188: 4997.15 | R188: 3717.9
A189: 52 | C189: 7566.7 | D189: 6866.3 | E189: 4997.15 | F189: 3717.9 | I189: 8902 | J189: 8078 | K189: 5879 | L189: 4374 | O189: 7566.7 | P189: 6866.3 | Q189: 4997.15 | R189: 3717.9
A190: 53 | C190: 7566.7 | D190: 6866.3 | E190: 4997.15 | F190: 3717.9 | I190: 8902 | J190: 8078 | K190: 5879 | L190: 4374 | O190: 7566.7 | P190: 6866.3 | Q190: 4997.15 | R190: 3717.9
A191: 54 | C191: 7566.7 | D191: 6866.3 | E191: 4997.15 | F191: 3717.9 | I191: 8902 | J191: 8078 | K191: 5879 | L191: 4374 | O191: 7566.7 | P191: 6866.3 | Q191: 4997.15 | R191: 3717.9
A192: 55 | C192: 8457.5 | D192: 7676.35 | E192: 5571.75 | F192: 4145.45 | I192: 9950 | J192: 9031 | K192: 6555 | L192: 4877 | O192: 8457.5 | P192: 7676.35 | Q192: 5571.75 | R192: 4145.45
A193: 56 | C193: 8457.5 | D193: 7676.35 | E193: 5571.75 | F193: 4145.45 | I193: 9950 | J193: 9031 | K193: 6555 | L193: 4877 | O193: 8457.5 | P193: 7676.35 | Q193: 5571.75 | R193: 4145.45
A194: 57 | C194: 8457.5 | D194: 7676.35 | E194: 5571.75 | F194: 4145.45 | I194: 9950 | J194: 9031 | K194: 6555 | L194: 4877 | O194: 8457.5 | P194: 7676.35 | Q194: 5571.75 | R194: 4145.45
A195: 58 | C195: 8457.5 | D195: 7676.35 | E195: 5571.75 | F195: 4145.45 | I195: 9950 | J195: 9031 | K195: 6555 | L195: 4877 | O195: 8457.5 | P195: 7676.35 | Q195: 5571.75 | R195: 4145.45
A196: 59 | C196: 8457.5 | D196: 7676.35 | E196: 5571.75 | F196: 4145.45 | I196: 9950 | J196: 9031 | K196: 6555 | L196: 4877 | O196: 8457.5 | P196: 7676.35 | Q196: 5571.75 | R196: 4145.45
A197: 60 | C197: 9052.5 | D197: 8213.55 | E197: 5955.95 | F197: 4429.35 | I197: 10650 | J197: 9663 | K197: 7007 | L197: 5211 | O197: 9052.5 | P197: 8213.55 | Q197: 5955.95 | R197: 4429.35
A198: 61 | C198: 10085.25 | D198: 9151.95 | E198: 6628.3 | F198: 4930.85 | I198: 11865 | J198: 10767 | K198: 7798 | L198: 5801 | O198: 10085.25 | P198: 9151.95 | Q198: 6628.3 | R198: 4930.85
A199: 62 | C199: 11203.85 | D199: 10169.4 | E199: 7361.85 | F199: 5476.55 | I199: 13181 | J199: 11964 | K199: 8661 | L199: 6443 | O199: 11203.85 | P199: 10169.4 | Q199: 7361.85 | R199: 5476.55
A200: 63 | C200: 12408.3 | D200: 11260.8 | E200: 8152.35 | F200: 6063.05 | I200: 14598 | J200: 13248 | K200: 9591 | L200: 7133 | O200: 12408.3 | P200: 11260.8 | Q200: 8152.35 | R200: 6063.05
A201: 64 | C201: 13696.05 | D201: 12429.55 | E201: 9001.5 | F201: 6695.45 | I201: 16113 | J201: 14623 | K201: 10590 | L201: 7877 | O201: 13696.05 | P201: 12429.55 | Q201: 9001.5 | R201: 6695.45
A202: 65 | C202: 15068.8 | D202: 13674.8 | E202: 9909.3 | F202: 7371.2 | I202: 17728 | J202: 16088 | K202: 11658 | L202: 8672 | O202: 15068.8 | P202: 13674.8 | Q202: 9909.3 | R202: 7371.2
A203: 66 | C203: 16525.7 | D203: 14995.7 | E203: 10875.75 | F203: 8090.3 | I203: 19442 | J203: 17642 | K203: 12795 | L203: 9518 | O203: 16525.7 | P203: 14995.7 | Q203: 10875.75 | R203: 8090.3
... 1275 more rows
